Workbook

Sheet Report
A1: 00700 | B1: << 請輸入欲查詢的證券代碼，並按 [更新版面] 更新資料 | W1: =A2 -> 騰訊控股有限公司(屬) | AF1: 損益表-單季/單半年 | AG1: =PL_Q!AS3 -> 2015Q1 | AH1: =PL_Q!AT3 -> 2015Q2 | AI1: =PL_Q!AU3 -> 2015Q3 | AJ1: =PL_Q!AV3 -> 2015Q4 | AK1: =PL_Q!AW3 -> 2016Q1 | AL1: =PL_Q!AX3 -> 2016Q2 | AN1: ="累計報表 幣別:"&FIN!E4 -> 累計報表 幣別:RMB | AO1: =FIN!B1 -> 2012 | AP1: =FIN!C1 -> 2013 | AQ1: =FIN!D1 -> 2014 | AR1: =FIN!E1 -> 2015 | AS1: =FIN!F1 -> 2016Q2
A2: =Attribute!C3&"(屬"&Attribute!U3&")" -> 騰訊控股有限公司(屬) | D2: ="上市別："&TRIM(MIDB(Attribute!A3,FIND("所",Attribute!A3)+5,20)) -> 上市別：主版 | F2: 股價相關 | G2: ='Srock Price'!I2 -> 2016-11-07 | I2: ="幣別"&'Srock Price'!I11 -> 幣別HKD | J2: ="買賣單位:"&'Srock Price'!I12 -> 買賣單位:100 | W2: H股股權結構 | Y2: =TEXT('Shares Structure'!C2,"YYYY/MM") -> 2013/12 | AF2: =PL_Q!AR5 -> 幣別 | AG2: =PL_Q!AS5 -> RMB | AH2: =PL_Q!AT5 -> RMB | AI2: =PL_Q!AU5 -> RMB | AJ2: =PL_Q!AV5 -> RMB | AK2: =PL_Q!AW5 -> RMB | AL2: =PL_Q!AX5 -> RMB | AN2: =FIN!A6 -> 會計結束月份 | AO2: =FIN!B6 -> 2012/12 | AP2: =FIN!C6 -> 2013/12 | AQ2: =FIN!D6 -> 2014/12 | AR2: =FIN!E6 -> 2015/12 | AS2: =FIN!F6 -> 2016/06
A3: =Attribute!B2 -> 港股通名單 | B3: =Attribute!B3 -> Y | C3: =Attribute!L2 -> 上市日期 | D3: =Attribute!L3 -> 2004-06-16 | F3: 收盤價 | G3: ='Srock Price'!I5 -> 204.2 | H3: 總股本 | I3: ='Srock Price'!I10 -> 9466966 | J3: 股價營收比-TEJ | K3: ='Srock Price'!I14 -> 13.27 | W3: ='Shares Structure'!A11 -> 未上市流通股份總計％ | Y3: ='Shares Structure'!C11 -> 0 | AF3: =PL_Q!AR7 -> 會計結束月份 | AG3: =PL_Q!AS7 -> 2015/03 | AH3: =PL_Q!AT7 -> 2015/06 | AI3: =PL_Q!AU7 -> 2015/09 | AJ3: =PL_Q!AV7 -> 2015/12 | AK3: =PL_Q!AW7 -> 2016/03 | AL3: =PL_Q!AX7 -> 2016/06 | AN3: =FIN!A3 -> 合併(Y/N) | AO3: =FIN!B3 -> Y | AP3: =FIN!C3 -> Y | AQ3: =FIN!D3 -> Y | AR3: =FIN!E3 -> Y | AS3: =FIN!F3 -> Y
A4: =Attribute!M2 -> 註冊地 | B4: =Attribute!M3 -> 開曼群島 | C4: =IF(AND(Attribute!S3="",Attribute!T3=""),"未於中國上市",IF(OR(Attribute!S3>0,Attribute!T3>0),"中國上市A股:"&Attribute!S3&" B股:"&Attribute!T3,"")) -> 未於中國上市 | F4: 報酬率 | G4: ='Srock Price'!I6 -> 2.1 | H4: 總市值 | I4: ='Srock Price'!I9 -> 1933154529 | J4: 週轉率(％) | K4: ='Srock Price'!I13 -> 0.17 | W4: ='Shares Structure'!A12 -> 人民幣普通股－Ａ股％ | Y4: ='Shares Structure'!C12 -> 0 | AF4: =PL_Q!AR8 -> 合併(Y/N) | AG4: =PL_Q!AS8 -> Y | AH4: =PL_Q!AT8 -> Y | AI4: =PL_Q!AU8 -> Y | AJ4: =PL_Q!AV8 -> Y | AK4: =PL_Q!AW8 -> Y | AL4: =PL_Q!AX8 -> Y | AN4: 資產負債表
A5: 管理者 | B5: =Attribute!F3&" ; "&Attribute!G3&" ; "&Attribute!H3&" ; "&Attribute!I3 -> 馬化騰(主席) ; 馬化騰(行政總裁) ; ; | F5: 成交量 | G5: ='Srock Price'!I7 -> 16085 | H5: 60日最高 | I5: ='Srock Price'!K19 -> 220.8 | J5: P/E | K5: ='Srock Price'!I3 -> 47.37 | W5: ='Shares Structure'!A13 -> 境內上市外資股% | Y5: ='Shares Structure'!C13 -> 0 | AF5: =PL_Q!AR9 -> 營業額 | AG5: =PL_Q!AS9 -> 22399000 | AH5: =PL_Q!AT9 -> 23429000 | AI5: =PL_Q!AU9 -> 26594000 | AJ5: =PL_Q!AV9 -> 30441000 | AK5: =PL_Q!AW9 -> 31995000 | AL5: =PL_Q!AX9 -> 35691000 | AN5: =FIN!A7 -> 固定資產 | AO5: =FIN!B7 -> 7936457 | AP5: =FIN!C7 -> 10734000 | AQ5: =FIN!D7 -> 11748000 | AR5: =FIN!E7 -> 14221000 | AS5: =FIN!F7 -> 15535000
A6: =Attribute!J2 -> 財務總監 | B6: =IF(Attribute!J3="","",Attribute!J3) -> 羅碩瀚 | C6: =Attribute!K2 -> 董事會秘書 | D6: =IF(Attribute!K3="","",Attribute!K3) -> 劉淑儀 | F6: 成交值 | G6: ='Srock Price'!I8 -> 3284762 | H6: 60日最低 | I6: ='Srock Price'!K20 -> 186.8 | J6: P/B | K6: ='Srock Price'!$I$4 -> 11.48 | W6: ='Shares Structure'!A14 -> 境外上市外資股－Ｈ% | Y6: ='Shares Structure'!C14 -> 0 | AF6: =PL_Q!AR10 -> 銷售成本 | AG6: =PL_Q!AS10 -> 8965000 | AH6: =PL_Q!AT10 -> 8991000 | AI6: =PL_Q!AU10 -> 11014000 | AJ6: =PL_Q!AV10 -> 12661000 | AK6: =PL_Q!AW10 -> 13406000 | AL6: =PL_Q!AX10 -> 15235000 | AN6: =FIN!A8 -> 投資物業-非流動 | AO6: =FIN!B8 -> 21674 | AP6: =FIN!C8 -> 0 | AQ6: =FIN!D8 -> 268000 | AR6: =FIN!E8 -> 292000 | AS6: =FIN!F8 -> 710000
A7: =Attribute!D2 -> 公司地址 | B7: =Attribute!D3 -> 香港灣仔皇后大道東 1號太古廣場 3座29樓 | W7: ='Shares Structure'!A15 -> 已流通優先股％ | Y7: ='Shares Structure'!C15 -> 0 | AF7: =PL_Q!AR11 -> 其他營業成本-稅金 | AG7: =PL_Q!AS11 -> 0 | AH7: =PL_Q!AT11 -> 0 | AI7: =PL_Q!AU11 -> 0 | AJ7: =PL_Q!AV11 -> 0 | AK7: =PL_Q!AW11 -> 0 | AL7: =PL_Q!AX11 -> 0 | AN7: =FIN!A9 -> 發展中物業-非流動 | AO7: =FIN!B9 -> 0 | AP7: =FIN!C9 -> 0 | AQ7: =FIN!D9 -> 0 | AR7: =FIN!E9 -> 0 | AS7: =FIN!F9 -> 0
A8: =Attribute!E2 -> 電話 | B8: =Attribute!E3 -> 852-21795122 | C8: =Attribute!R2 -> 交易所業務類別 | D8: =MIDB(Attribute!R3,FIND(" ",Attribute!R3)+1,20) -> 軟件服務 | W8: ='Shares Structure'!A16 -> 其它流通股％ | Y8: ='Shares Structure'!C16 -> 0 | AF8: =PL_Q!AR12 -> 營業毛利 (TEJ) | AG8: =PL_Q!AS12 -> 13434000 | AH8: =PL_Q!AT12 -> 14438000 | AI8: =PL_Q!AU12 -> 15580000 | AJ8: =PL_Q!AV12 -> 17780000 | AK8: =PL_Q!AW12 -> 18589000 | AL8: =PL_Q!AX12 -> 20456000 | AN8: =FIN!A10 -> 生物資產-非流動 | AO8: =FIN!B10 -> 0 | AP8: =FIN!C10 -> 0 | AQ8: =FIN!D10 -> 0 | AR8: =FIN!E10 -> 0 | AS8: =FIN!F10 -> 0
W9: ='Shares Structure'!A17 -> 已上市流通股份總計％ | Y9: ='Shares Structure'!C17 -> 0 | AF9: =PL_Q!AR13 -> 其他收入及收益 | AG9: =PL_Q!AS13 -> 932000 | AH9: =PL_Q!AT13 -> 1210000 | AI9: =PL_Q!AU13 -> 1173000 | AJ9: =PL_Q!AV13 -> 898000 | AK9: =PL_Q!AW13 -> 1209000 | AL9: =PL_Q!AX13 -> 1537000 | AN9: =FIN!A11 -> 預付租賃款－非流動 | AO9: =FIN!B11 -> 794439 | AP9: =FIN!C11 -> 871000 | AQ9: =FIN!D11 -> 751000 | AR9: =FIN!E11 -> 2293000 | AS9: =FIN!F11 -> 4066000
AF10: =PL_Q!AR14 -> 營業費用─推銷費用 | AG10: =PL_Q!AS14 -> 1326000 | AH10: =PL_Q!AT14 -> 1601000 | AI10: =PL_Q!AU14 -> 2042000 | AJ10: =PL_Q!AV14 -> 3024000 | AK10: =PL_Q!AW14 -> 2032000 | AL10: =PL_Q!AX14 -> 2365000 | AN10: =FIN!A12 -> 商譽 | AO10: =FIN!B12 -> 2928919 | AP10: =FIN!C12 -> 2552000 | AQ10: =FIN!D12 -> 0 | AR10: =FIN!E12 -> 0 | AS10: =FIN!F12 -> 0
W11: 融資券 | AF11: =PL_Q!AR15 -> 營業費用─管理費用 | AG11: =PL_Q!AS15 -> 3668000 | AH11: =PL_Q!AT15 -> 4011000 | AI11: =PL_Q!AU15 -> 4380000 | AJ11: =PL_Q!AV15 -> 4766000 | AK11: =PL_Q!AW15 -> 4368000 | AL11: =PL_Q!AX15 -> 5299000 | AN11: =FIN!A13 -> 聯營公司權益淨額 | AO11: =FIN!B13 -> 7310266 | AP11: =FIN!C13 -> 12170000 | AQ11: =FIN!D13 -> 54072000 | AR11: =FIN!E13 -> 66401000 | AS11: =FIN!F13 -> 64092000
X12: 融券股數 | Y12: 融券金額 | Z12: 佔成交股數% | AA12: 佔成交金額% | AB12: 融券市值 | AC12: 交易幣別 | AF12: =PL_Q!AR16 -> 營業費用─研究及開發開支 | AG12: =PL_Q!AS16 -> 0 | AH12: =PL_Q!AT16 -> 0 | AI12: =PL_Q!AU16 -> 0 | AJ12: =PL_Q!AV16 -> 0 | AK12: =PL_Q!AW16 -> 0 | AL12: =PL_Q!AX16 -> 0 | AN12: =FIN!A14 -> 共同控制公司權益 | AO12: =FIN!B14 -> 35409 | AP12: =FIN!C14 -> 9000 | AQ12: =FIN!D14 -> 63000 | AR12: =FIN!E14 -> 544000 | AS12: =FIN!F14 -> 573000
W13: =IF('Margin Trading'!A3="","",'Margin Trading'!A3) -> 2016-11-07 | X13: =IF('Margin Trading'!C3="","",'Margin Trading'!C3) -> 1605900 | Y13: =IF('Margin Trading'!D3="","",'Margin Trading'!D3) -> 328888480 | Z13: =IF('Margin Trading'!E3="","",'Margin Trading'!E3) -> 9.984 | AA13: =IF('Margin Trading'!F3="","",'Margin Trading'!F3) -> 10.013 | AB13: =IF('Margin Trading'!G3="","",'Margin Trading'!G3) -> 327924780 | AC13: =IF('Margin Trading'!H3="","",'Margin Trading'!H3) -> HKD | AF13: =PL_Q!AR17 -> 其他經營支出 | AG13: =PL_Q!AS17 -> 0 | AH13: =PL_Q!AT17 -> 0 | AI13: =PL_Q!AU17 -> 0 | AJ13: =PL_Q!AV17 -> 0 | AK13: =PL_Q!AW17 -> 0 | AL13: =PL_Q!AX17 -> 0 | AN13: =FIN!A15 -> 非流動資產合計 | AO13: =FIN!B15 -> 38746663 | AP13: =FIN!C15 -> 53549000 | AQ13: =FIN!D15 -> 95845000 | AR13: =FIN!E15 -> 151440000 | AS13: =FIN!F15 -> 183018000
W14: =IF('Margin Trading'!A4="","",'Margin Trading'!A4) -> 2016-11-04 | X14: =IF('Margin Trading'!C4="","",'Margin Trading'!C4) -> 1367400 | Y14: =IF('Margin Trading'!D4="","",'Margin Trading'!D4) -> 274082210 | Z14: =IF('Margin Trading'!E4="","",'Margin Trading'!E4) -> 8.033 | AA14: =IF('Margin Trading'!F4="","",'Margin Trading'!F4) -> 8.038 | AB14: =IF('Margin Trading'!G4="","",'Margin Trading'!G4) -> 273480000 | AC14: =IF('Margin Trading'!H4="","",'Margin Trading'!H4) -> HKD | AF14: =PL_Q!AR18 -> 重組成本 | AG14: =PL_Q!AS18 -> 0 | AH14: =PL_Q!AT18 -> 0 | AI14: =PL_Q!AU18 -> 0 | AJ14: =PL_Q!AV18 -> 0 | AK14: =PL_Q!AW18 -> 0 | AL14: =PL_Q!AX18 -> 0 | AN14: =FIN!A16 -> 存貨 | AO14: =FIN!B16 -> 568084 | AP14: =FIN!C16 -> 1384000 | AQ14: =FIN!D16 -> 244000 | AR14: =FIN!E16 -> 222000 | AS14: =FIN!F16 -> 216000
W15: =IF('Margin Trading'!A5="","",'Margin Trading'!A5) -> 2016-11-03 | X15: =IF('Margin Trading'!C5="","",'Margin Trading'!C5) -> 1724700 | Y15: =IF('Margin Trading'!D5="","",'Margin Trading'!D5) -> 348924900 | Z15: =IF('Margin Trading'!E5="","",'Margin Trading'!E5) -> 9.876 | AA15: =IF('Margin Trading'!F5="","",'Margin Trading'!F5) -> 9.882 | AB15: =IF('Margin Trading'!G5="","",'Margin Trading'!G5) -> 348389400 | AC15: =IF('Margin Trading'!H5="","",'Margin Trading'!H5) -> HKD | AF15: =PL_Q!AR19 -> 營業溢利 (TEJ) | AG15: =PL_Q!AS19 -> 9372000 | AH15: =PL_Q!AT19 -> 10036000 | AI15: =PL_Q!AU19 -> 10331000 | AJ15: =PL_Q!AV19 -> 10888000 | AK15: =PL_Q!AW19 -> 13398000 | AL15: =PL_Q!AX19 -> 14329000 | AN15: =FIN!A17 -> 備供出售流動金融資產 | AO15: =FIN!B17 -> 0 | AP15: =FIN!C17 -> 0 | AQ15: =FIN!D17 -> 0 | AR15: =FIN!E17 -> 0 | AS15: =FIN!F17 -> 0
W16: =IF('Margin Trading'!A6="","",'Margin Trading'!A6) -> 2016-11-02 | X16: =IF('Margin Trading'!C6="","",'Margin Trading'!C6) -> 1685800 | Y16: =IF('Margin Trading'!D6="","",'Margin Trading'!D6) -> 344891200 | Z16: =IF('Margin Trading'!E6="","",'Margin Trading'!E6) -> 12.154 | AA16: =IF('Margin Trading'!F6="","",'Margin Trading'!F6) -> 12.129 | AB16: =IF('Margin Trading'!G6="","",'Margin Trading'!G6) -> 344577520 | AC16: =IF('Margin Trading'!H6="","",'Margin Trading'!H6) -> HKD | AF16: =PL_Q!AR20 -> 財務收入 | AG16: =PL_Q!AS20 -> 0 | AH16: =PL_Q!AT20 -> 0 | AI16: =PL_Q!AU20 -> 0 | AJ16: =PL_Q!AV20 -> 0 | AK16: =PL_Q!AW20 -> 0 | AL16: =PL_Q!AX20 -> 0 | AN16: =FIN!A18 -> 應收帳款及票據 | AO16: =FIN!B18 -> 2353959 | AP16: =FIN!C18 -> 2955000 | AQ16: =FIN!D18 -> 4588000 | AR16: =FIN!E18 -> 7061000 | AS16: =FIN!F18 -> 8810000
W17: =IF('Margin Trading'!A7="","",'Margin Trading'!A7) -> 2016-11-01 | X17: =IF('Margin Trading'!C7="","",'Margin Trading'!C7) -> 889000 | Y17: =IF('Margin Trading'!D7="","",'Margin Trading'!D7) -> 185278200 | Z17: =IF('Margin Trading'!E7="","",'Margin Trading'!E7) -> 5.916 | AA17: =IF('Margin Trading'!F7="","",'Margin Trading'!F7) -> 5.921 | AB17: =IF('Margin Trading'!G7="","",'Margin Trading'!G7) -> 184200800 | AC17: =IF('Margin Trading'!H7="","",'Margin Trading'!H7) -> HKD | AF17: =PL_Q!AR21 -> 財政 /融資支出 | AG17: =PL_Q!AS21 -> 433000 | AH17: =PL_Q!AT21 -> 341000 | AI17: =PL_Q!AU21 -> 481000 | AJ17: =PL_Q!AV21 -> 363000 | AK17: =PL_Q!AW21 -> 491000 | AL17: =PL_Q!AX21 -> 377000 | AN17: =FIN!A19 -> 其他應收款 | AO17: =FIN!B19 -> 2582334 | AP17: =FIN!C19 -> 4196000 | AQ17: =FIN!D19 -> 5315000 | AR17: =FIN!E19 -> 11397000 | AS17: =FIN!F19 -> 0
AF18: =PL_Q!AR22 -> 應佔聯營公司溢利之損益 | AG18: =PL_Q!AS22 -> -310000 | AH18: =PL_Q!AT22 -> -452000 | AI18: =PL_Q!AU22 -> -702000 | AJ18: =PL_Q!AV22 -> -1329000 | AK18: =PL_Q!AW22 -> -1089000 | AL18: =PL_Q!AX22 -> -292000 | AN18: =FIN!A20 -> 短期借支 | AO18: =FIN!B20 -> 0 | AP18: =FIN!C20 -> 0 | AQ18: =FIN!D20 -> 0 | AR18: =FIN!E20 -> 0 | AS18: =FIN!F20 -> 0
AF19: =PL_Q!AR23 -> 應佔共同控制公司溢利之損益 | AG19: =PL_Q!AS23 -> 0 | AH19: =PL_Q!AT23 -> 0 | AI19: =PL_Q!AU23 -> 0 | AJ19: =PL_Q!AV23 -> 0 | AK19: =PL_Q!AW23 -> 0 | AL19: =PL_Q!AX23 -> 0 | AN19: =FIN!A21 -> 預付費用及預付款 | AO19: =FIN!B21 -> 622719 | AP19: =FIN!C21 -> 1169000 | AQ19: =FIN!D21 -> 2489000 | AR19: =FIN!E21 -> 0 | AS19: =FIN!F21 -> 11908000
AF20: =PL_Q!AR24 -> 營業溢利後其他收入合計 | AG20: =PL_Q!AS24 -> 0 | AH20: =PL_Q!AT24 -> 0 | AI20: =PL_Q!AU24 -> 0 | AJ20: =PL_Q!AV24 -> 0 | AK20: =PL_Q!AW24 -> 0 | AL20: =PL_Q!AX24 -> 0 | AN20: =FIN!A22 -> 預付租賃款-流動 | AO20: =FIN!B22 -> 0 | AP20: =FIN!C22 -> 0 | AQ20: =FIN!D22 -> 0 | AR20: =FIN!E22 -> 0 | AS20: =FIN!F22 -> 0
AF21: =PL_Q!AR25 -> 營業溢利後其他支出合計 | AG21: =PL_Q!AS25 -> 0 | AH21: =PL_Q!AT25 -> 0 | AI21: =PL_Q!AU25 -> 0 | AJ21: =PL_Q!AV25 -> 0 | AK21: =PL_Q!AW25 -> 0 | AL21: =PL_Q!AX25 -> 0 | AN21: =FIN!A23 -> 現金及約當現金 | AO21: =FIN!B23 -> 27189073 | AP21: =FIN!C23 -> 39851000 | AQ21: =FIN!D23 -> 53511000 | AR21: =FIN!E23 -> 80769000 | AS21: =FIN!F23 -> 99980000
AF22: =PL_Q!AR26 -> 除稅前利潤 | AG22: =PL_Q!AS26 -> 8629000 | AH22: =PL_Q!AT26 -> 9243000 | AI22: =PL_Q!AU26 -> 9148000 | AJ22: =PL_Q!AV26 -> 9196000 | AK22: =PL_Q!AW26 -> 11818000 | AL22: =PL_Q!AX26 -> 13660000 | AN22: =FIN!A24 -> 流動資產合計 | AO22: =FIN!B24 -> 36509148 | AP22: =FIN!C24 -> 53686000 | AQ22: =FIN!D24 -> 75321000 | AR22: =FIN!E24 -> 155378000 | AS22: =FIN!F24 -> 247941000
AF23: =PL_Q!AR27 -> 所得稅費用 | AG23: =PL_Q!AS27 -> 1699000 | AH23: =PL_Q!AT27 -> 1847000 | AI23: =PL_Q!AU27 -> 1564000 | AJ23: =PL_Q!AV27 -> 1998000 | AK23: =PL_Q!AW27 -> 2550000 | AL23: =PL_Q!AX27 -> 2780000 | AN23: =FIN!A25 -> 資產總額 | AO23: =FIN!B25 -> 75255811 | AP23: =FIN!C25 -> 107235000 | AQ23: =FIN!D25 -> 171166000 | AR23: =FIN!E25 -> 306818000 | AS23: =FIN!F25 -> 430959000
AF24: =PL_Q!AR28 -> 稅後淨利 | AG24: =PL_Q!AS28 -> 6930000 | AH24: =PL_Q!AT28 -> 7396000 | AI24: =PL_Q!AU28 -> 7584000 | AJ24: =PL_Q!AV28 -> 7198000 | AK24: =PL_Q!AW28 -> 9268000 | AL24: =PL_Q!AX28 -> 10880000 | AN24: =FIN!A26 -> 短期借款 | AO24: =FIN!B26 -> 982825 | AP24: =FIN!C26 -> 2284000 | AQ24: =FIN!D26 -> 0 | AR24: =FIN!E26 -> 0 | AS24: =FIN!F26 -> 0
AF25: =PL_Q!AR29 -> 停業部門損益 | AG25: =PL_Q!AS29 -> 0 | AH25: =PL_Q!AT29 -> 0 | AI25: =PL_Q!AU29 -> 0 | AJ25: =PL_Q!AV29 -> 0 | AK25: =PL_Q!AW29 -> 0 | AL25: =PL_Q!AX29 -> 0 | AN25: =FIN!A27 -> 應付帳款及票據 | AO25: =FIN!B27 -> 4211733 | AP25: =FIN!C27 -> 6680000 | AQ25: =FIN!D27 -> 8683000 | AR25: =FIN!E27 -> 15700000 | AS25: =FIN!F27 -> 28450000
AF26: =PL_Q!AR30 -> 非常項目 | AG26: =PL_Q!AS30 -> 0 | AH26: =PL_Q!AT30 -> 0 | AI26: =PL_Q!AU30 -> 0 | AJ26: =PL_Q!AV30 -> 0 | AK26: =PL_Q!AW30 -> 0 | AL26: =PL_Q!AX30 -> 0 | AN26: =FIN!A28 -> 其他應付款 | AO26: =FIN!B28 -> 719906 | AP26: =FIN!C28 -> 1676000 | AQ26: =FIN!D28 -> 1780000 | AR26: =FIN!E28 -> 0 | AS26: =FIN!F28 -> 138759000
AF27: =PL_Q!AR31 -> 累計影響數 | AG27: =PL_Q!AS31 -> 0 | AH27: =PL_Q!AT31 -> 0 | AI27: =PL_Q!AU31 -> 0 | AJ27: =PL_Q!AV31 -> 0 | AK27: =PL_Q!AW31 -> 0 | AL27: =PL_Q!AX31 -> 0 | AN27: =FIN!A29 -> 預收款項 | AO27: =FIN!B29 -> 2486804 | AP27: =FIN!C29 -> 4045000 | AQ27: =FIN!D29 -> 8949000 | AR27: =FIN!E29 -> 0 | AS27: =FIN!F29 -> 0
AF28: =PL_Q!AR32 -> 撥至儲備 | AG28: =PL_Q!AS32 -> 0 | AH28: =PL_Q!AT32 -> 0 | AI28: =PL_Q!AU32 -> 0 | AJ28: =PL_Q!AV32 -> 0 | AK28: =PL_Q!AW32 -> 0 | AL28: =PL_Q!AX32 -> 0 | AN28: =FIN!A30 -> 應付所得稅 | AO28: =FIN!B30 -> 959967 | AP28: =FIN!C30 -> 1911000 | AQ28: =FIN!D30 -> 1027000 | AR28: =FIN!E30 -> 2070000 | AS28: =FIN!F30 -> 3555000
AF29: =PL_Q!AR33 -> 其他調整項目 | AG29: =PL_Q!AS33 -> 0 | AH29: =PL_Q!AT33 -> 0 | AI29: =PL_Q!AU33 -> 0 | AJ29: =PL_Q!AV33 -> 0 | AK29: =PL_Q!AW33 -> 0 | AL29: =PL_Q!AX33 -> 0 | AN29: =FIN!A31 -> 一年內到期長期負債 | AO29: =FIN!B31 -> 94283 | AP29: =FIN!C31 -> 305000 | AQ29: =FIN!D31 -> 5049000 | AR29: =FIN!E31 -> 15315000 | AS29: =FIN!F31 -> 10080000
A30: 請輸最低倍 | B30: 20 | C30: 請輸入級距 | D30: 20 | AF30: =PL_Q!AR34 -> 本年度稅後溢利 | AG30: =PL_Q!AS34 -> 6930000 | AH30: =PL_Q!AT34 -> 7396000 | AI30: =PL_Q!AU34 -> 7584000 | AJ30: =PL_Q!AV34 -> 7198000 | AK30: =PL_Q!AW34 -> 9268000 | AL30: =PL_Q!AX34 -> 10880000 | AN30: =FIN!A32 -> 流動負債合計 | AO30: =FIN!B32 -> 20664996 | AP30: =FIN!C32 -> 33267000 | AQ30: =FIN!D32 -> 50035000 | AR30: =FIN!E32 -> 124406000 | AS30: =FIN!F32 -> 209002000
AF31: =PL_Q!AR35 -> 少數股東應佔溢利 | AG31: =PL_Q!AS35 -> 47000 | AH31: =PL_Q!AT35 -> 82000 | AI31: =PL_Q!AU35 -> 139000 | AJ31: =PL_Q!AV35 -> 34000 | AK31: =PL_Q!AW35 -> 85000 | AL31: =PL_Q!AX35 -> 143000 | AN31: =FIN!A33 -> 長期負債 | AO31: =FIN!B33 -> 9622409 | AP31: =FIN!C33 -> 12464000 | AQ31: =FIN!D33 -> 30535000 | AR31: =FIN!E33 -> 50014000 | AS31: =FIN!F33 -> 67615000
AF32: =PL_Q!AR36 -> 本公司股東應佔溢利 | AG32: =PL_Q!AS36 -> 6883000 | AH32: =PL_Q!AT36 -> 7314000 | AI32: =PL_Q!AU36 -> 7445000 | AJ32: =PL_Q!AV36 -> 7164000 | AK32: =PL_Q!AW36 -> 9183000 | AL32: =PL_Q!AX36 -> 10737000 | AN32: =FIN!A34 -> 非流動負債合計 | AO32: =FIN!B34 -> 12442549 | AP32: =FIN!C34 -> 15505000 | AQ32: =FIN!D34 -> 39007000 | AR32: =FIN!E34 -> 60312000 | AS32: =FIN!F34 -> 77836000
AF33: =PL_Q!AR37 -> 基本每股盈餘 | AG33: =PL_Q!AS37 -> 74.1143534 | AH33: =PL_Q!AT37 -> 78.7382926 | AI33: =PL_Q!AU37 -> 80.09682625 | AJ33: =PL_Q!AV37 -> 77.03225806 | AK33: =PL_Q!AW37 -> 98.14042962 | AL33: =PL_Q!AX37 -> 114.6747837 | AN33: =FIN!A35 -> 負債總額 | AO33: =FIN!B35 -> 33107545 | AP33: =FIN!C35 -> 48772000 | AQ33: =FIN!D35 -> 89042000 | AR33: =FIN!E35 -> 184718000 | AS33: =FIN!F35 -> 286838000
W34: 新聞 | AF34: =PL_Q!AR38 -> 加權平均股數 | AG34: =PL_Q!AS38 -> 9287000 | AH34: =PL_Q!AT38 -> 9289000 | AI34: =PL_Q!AU38 -> 9295000 | AJ34: =PL_Q!AV38 -> 9300000 | AK34: =PL_Q!AW38 -> 9357000 | AL34: =PL_Q!AX38 -> 9363000 | AN34: =FIN!A36 -> 普通股股本 | AO34: =FIN!B36 -> 199 | AP34: =FIN!C36 -> 0 | AQ34: =FIN!D36 -> 0 | AR34: =FIN!E36 -> 0 | AS34: =FIN!F36 -> 0
H35: =YEAR(SalesBrekdown!A3) -> 2016 | I35: 產銷組合-產品別 | W35: =IF(News!A2="","",News!A2) -> 年月日 | X35: =IF(News!D2="","",News!D2) -> 新聞內容 | AF35: =PL_Q!AR39 -> 當季特別股股息負債 | AG35: =PL_Q!AS39 -> 0 | AH35: =PL_Q!AT39 -> 0 | AI35: =PL_Q!AU39 -> 0 | AJ35: =PL_Q!AV39 -> 0 | AK35: =PL_Q!AW39 -> 0 | AL35: =PL_Q!AX39 -> 0 | AN35: =FIN!A37 -> 少數股權 | AO35: =FIN!B37 -> 850759 | AP35: =FIN!C37 -> 518000 | AQ35: =FIN!D37 -> 2111000 | AR35: =FIN!E37 -> 2065000 | AS35: =FIN!F37 -> 2851000
H36: =SalesBrekdown!B2 -> 營業項目 | I36: =SalesBrekdown!C2 -> 收入 | J36: =SalesBrekdown!D2 -> 比率 | K36: =SalesBrekdown!E2 -> 幣別 | W36: =IF(News!A3="","",News!A3) -> 2016-10-16 | X36: =IF(News!D3="","",News!D3) -> ＊公告（香港聯交所） | AF36: =PL_Q!AR40 -> 每股盈餘-攤薄 | AG36: =PL_Q!AS40 -> 0 | AH36: =PL_Q!AT40 -> 0 | AI36: =PL_Q!AU40 -> 0 | AJ36: =PL_Q!AV40 -> 0 | AK36: =PL_Q!AW40 -> 0 | AL36: =PL_Q!AX40 -> 0 | AN36: =FIN!A38 -> 待出售資產相關權益 | AO36: =FIN!B38 -> 0 | AP36: =FIN!C38 -> 0 | AQ36: =FIN!D38 -> 0 | AR36: =FIN!E38 -> 0 | AS36: =FIN!F38 -> 0
H37: =IF(SalesBrekdown!B3<>"",SalesBrekdown!B3,"#N/A") -> B52 互聯網業務 | I37: =IF($H37<>"",SalesBrekdown!C3,"") -> 50644000 | J37: =IF($H37<>"#N/A",SalesBrekdown!D3,"#N/A") -> 74.82 | K37: =IF($H37<>"",SalesBrekdown!E3,"") -> RMB | X37: =IF(News!D4="","",News!D4) -> 於2016年10月10日起至2016年10月12日期間，財團（本公司的間接全資附屬公司）與共同投資者訂立認購協議，據此，共同投資者承諾認購新財團股份，總對價為850,000,000美元，以現金支付。於2016年10月16日，已落實共同投資者當中 新財團股份的分配，並決定由於進行認購事項，本公司於財團的間接投票股權將為50%，而共同投資者將共同持有財團的50%投票股權。因此，財團將不再為本公司的附屬公司。誠如6月21日公告所指出，認購事項是為了成立財團以進行 Supercell收購事項之目的而作出，認購事項的所得款項將用作撥付Supercell收購事項的部分資金。本公司預期財團將於2016年10月27日或前後透過買方完成S upercell收購事項。於Supercell收購事項完成後，財團將於Supercell證券中間接持有76.9%的權益。根據上市規則第14.29條，認購事項及分配新財團股份合計被視作出售本公司於財團的間接權益。有關認購事項合計的最高適用百分比率（定義見上市規則第14.07條）超逾5%但低於25%。因此，認購事項構成本公司的一項須予披露交易，並須遵守上市規則第14章的通知及公告要求。 | AF37: =PL_Q!AR41 -> 攤薄加權平均股數 | AG37: =PL_Q!AS41 -> 0 | AH37: =PL_Q!AT41 -> 0 | AI37: =PL_Q!AU41 -> 0 | AJ37: =PL_Q!AV41 -> 0 | AK37: =PL_Q!AW41 -> 0 | AL37: =PL_Q!AX41 -> 0 | AN37: =FIN!A39 -> 股東權益總額 | AO37: =FIN!B39 -> 42148266 | AP37: =FIN!C39 -> 58463000 | AQ37: =FIN!D39 -> 82124000 | AR37: =FIN!E39 -> 122100000 | AS37: =FIN!F39 -> 144121000
H38: =IF(SalesBrekdown!B4<>"",SalesBrekdown!B4,"#N/A") -> A28 廣告收入 | I38: =IF($H38<>"",SalesBrekdown!C4,"") -> 11233000 | J38: =IF($H38<>"#N/A",SalesBrekdown!D4,"#N/A") -> 16.6 | K38: =IF($H38<>"",SalesBrekdown!E4,"") -> RMB | AF38: =PL_Q!AR42 -> 稅前息前折舊前攤銷前淨利 | AG38: =PL_Q!AS42 -> 0 | AH38: =PL_Q!AT42 -> 0 | AI38: =PL_Q!AU42 -> 0 | AJ38: =PL_Q!AV42 -> 0 | AK38: =PL_Q!AW42 -> 0 | AL38: =PL_Q!AX42 -> 0 | AN38: 損益表
H39: =IF(SalesBrekdown!B5<>"",SalesBrekdown!B5,"#N/A") -> 999 其他 | I39: =IF($H39<>"",SalesBrekdown!C5,"") -> 5809000 | J39: =IF($H39<>"#N/A",SalesBrekdown!D5,"#N/A") -> 8.58 | K39: =IF($H39<>"",SalesBrekdown!E5,"") -> RMB | AF39: =PL_Q!AR43 -> 營業毛利 (財報) | AG39: =PL_Q!AS43 -> 13434000 | AH39: =PL_Q!AT43 -> 14438000 | AI39: =PL_Q!AU43 -> 15580000 | AJ39: =PL_Q!AV43 -> 17780000 | AK39: =PL_Q!AW43 -> 18589000 | AL39: =PL_Q!AX43 -> 20456000 | AN39: =FIN!A40 -> 營業額 | AO39: =FIN!B40 -> 43893711 | AP39: =FIN!C40 -> 60437000 | AQ39: =FIN!D40 -> 78932000 | AR39: =FIN!E40 -> 102863000 | AS39: =FIN!F40 -> 67686000
H40: =IF(SalesBrekdown!B6<>"",SalesBrekdown!B6,"#N/A") -> #N/A | I40: =IF($H40<>"",SalesBrekdown!C6,"") -> 0 | J40: =IF($H40<>"#N/A",SalesBrekdown!D6,"#N/A") -> #N/A | K40: =IF($H40<>"",SalesBrekdown!E6,"") -> 0 | AF40: =PL_Q!AR44 -> 營業溢利 (財報) | AG40: =PL_Q!AS44 -> 9372000 | AH40: =PL_Q!AT44 -> 10036000 | AI40: =PL_Q!AU44 -> 10331000 | AJ40: =PL_Q!AV44 -> 10888000 | AK40: =PL_Q!AW44 -> 13398000 | AL40: =PL_Q!AX44 -> 14329000 | AN40: =FIN!A41 -> 銷售成本 | AO40: =FIN!B41 -> 18207360 | AP40: =FIN!C41 -> 27778000 | AQ40: =FIN!D41 -> 30873000 | AR40: =FIN!E41 -> 41631000 | AS40: =FIN!F41 -> 28641000
H41: =IF(SalesBrekdown!B7<>"",SalesBrekdown!B7,"#N/A") -> #N/A | I41: =IF($H41<>"",SalesBrekdown!C7,"") -> 0 | J41: =IF($H41<>"#N/A",SalesBrekdown!D7,"#N/A") -> #N/A | K41: =IF($H41<>"",SalesBrekdown!E7,"") -> 0 | W41: =IF(News!A5="","",News!A5) ->  | X41: =IF(News!D5="","",News!D5) ->  | AF41: 獲利能力分析 | AN41: =FIN!A42 -> 營業毛利 (TEJ) | AO41: =FIN!B42 -> 25686351 | AP41: =FIN!C42 -> 32659000 | AQ41: =FIN!D42 -> 48059000 | AR41: =FIN!E42 -> 61232000 | AS41: =FIN!F42 -> 39045000
H42: =IF(SalesBrekdown!B8<>"",SalesBrekdown!B8,"#N/A") -> #N/A | I42: =IF(SalesBrekdown!$B8<>"",SalesBrekdown!$C8,"") ->  | J42: =IF($H42<>"#N/A",SalesBrekdown!D8,"#N/A") -> #N/A | K42: =IF(SalesBrekdown!$B8<>"",SalesBrekdown!E8,"") ->  | X42: =IF(News!D6="","",News!D6) ->  | AF42: 稅後淨利成長率 | AG42: =PL_Q!AS48 -> 7.742537313 | AH42: =PL_Q!AT48 -> 26.94816341 | AI42: =PL_Q!AU48 -> 33.61522199 | AJ42: =PL_Q!AV48 -> 20.89351696 | AK42: =PL_Q!AW48 -> 33.73737374 | AL42: =PL_Q!AX48 -> 47.10654408 | AN42: =FIN!A43 -> 營業費用─研究及開發開支 | AO42: =FIN!B43 -> 0 | AP42: =FIN!C43 -> 0 | AQ42: =FIN!D43 -> 0 | AR42: =FIN!E43 -> 0 | AS42: =FIN!F43 -> 0
H43: =IF(SalesBrekdown!B9<>"",SalesBrekdown!B9,"#N/A") -> #N/A | I43: =IF(SalesBrekdown!$B9<>"",SalesBrekdown!$C9,"") ->  | J43: =IF($H43<>"#N/A",SalesBrekdown!D9,"#N/A") -> #N/A | K43: =IF(SalesBrekdown!$B9<>"",SalesBrekdown!E9,"") ->  | AF43: 營收成長率 | AG43: =PL_Q!AS49 -> 21.73369565 | AH43: =PL_Q!AT49 -> 18.65187886 | AI43: =PL_Q!AU49 -> 34.2588853 | AJ43: =PL_Q!AV49 -> 45.10916198 | AK43: =PL_Q!AW49 -> 42.84119827 | AL43: =PL_Q!AX49 -> 52.3368475 | AN43: =FIN!A44 -> 營業溢利 (TEJ) | AO43: =FIN!B44 -> 15479413 | AP43: =FIN!C44 -> 19194000 | AQ43: =FIN!D44 -> 30542000 | AR43: =FIN!E44 -> 40627000 | AS43: =FIN!F44 -> 27727000
H44: =IF(SalesBrekdown!B10<>"",SalesBrekdown!B10,"#N/A") -> #N/A | I44: =IF(SalesBrekdown!$B10<>"",SalesBrekdown!$C10,"") ->  | J44: =IF($H44<>"#N/A",SalesBrekdown!D10,"#N/A") -> #N/A | K44: =IF(SalesBrekdown!$B10<>"",SalesBrekdown!E10,"") ->  | AF44: 營業毛利率 | AG44: =PL_Q!AS50 -> 59.97589178 | AH44: =PL_Q!AT50 -> 61.62448248 | AI44: =PL_Q!AU50 -> 58.58464315 | AJ44: =PL_Q!AV50 -> 58.40806807 | AK44: =PL_Q!AW50 -> 58.09970308 | AL44: =PL_Q!AX50 -> 57.31416884 | AN44: =FIN!A45 -> 營業溢利後其他收入合計 | AO44: =FIN!B45 -> 0 | AP44: =FIN!C45 -> 0 | AQ44: =FIN!D45 -> 0 | AR44: =FIN!E45 -> 0 | AS44: =FIN!F45 -> 0
H45: =IF(SalesBrekdown!B11<>"",SalesBrekdown!B11,"#N/A") -> #N/A | I45: =IF(SalesBrekdown!$B11<>"",SalesBrekdown!$C11,"") ->  | J45: =IF($H45<>"#N/A",SalesBrekdown!D11,"#N/A") -> #N/A | K45: =IF(SalesBrekdown!$B11<>"",SalesBrekdown!E11,"") ->  | AF45: 營業利益率 | AG45: =PL_Q!AS51 -> 41.84115362 | AH45: =PL_Q!AT51 -> 42.83580178 | AI45: =PL_Q!AU51 -> 38.84710837 | AJ45: =PL_Q!AV51 -> 35.76755034 | AK45: =PL_Q!AW51 -> 41.87529301 | AL45: =PL_Q!AX51 -> 40.14737609 | AN45: =FIN!A46 -> 營業溢利後其他支出合計 | AO45: =FIN!B46 -> 0 | AP45: =FIN!C46 -> 0 | AQ45: =FIN!D46 -> 0 | AR45: =FIN!E46 -> 0 | AS45: =FIN!F46 -> 0
H46: =IF(SalesBrekdown!B12<>"",SalesBrekdown!B12,"#N/A") -> #N/A | I46: =IF(SalesBrekdown!$B12<>"",SalesBrekdown!$C12,"") ->  | J46: =IF($H46<>"#N/A",SalesBrekdown!D12,"#N/A") -> #N/A | K46: =IF(SalesBrekdown!$B12<>"",SalesBrekdown!E12,"") ->  | W46: =IF(News!A7="","",News!A7) ->  | X46: =IF(News!D7="","",News!D7) ->  | AF46: 稅前淨利率 | AG46: =PL_Q!AS52 -> 38.52404125 | AH46: =PL_Q!AT52 -> 39.4511076 | AI46: =PL_Q!AU52 -> 34.39873656 | AJ46: =PL_Q!AV52 -> 30.20925725 | AK46: =PL_Q!AW52 -> 36.93702141 | AL46: =PL_Q!AX52 -> 38.27295397 | AN46: =FIN!A47 -> 除稅前利潤 | AO46: =FIN!B47 -> 15051015 | AP46: =FIN!C47 -> 19281000 | AQ46: =FIN!D47 -> 29013000 | AR46: =FIN!E47 -> 36216000 | AS46: =FIN!F47 -> 25478000
A47: 請輸最低倍 | B47: 10 | C47: 請輸入級距 | D47: 5 | H47: =IF(SalesBrekdown!B13<>"",SalesBrekdown!B13,"#N/A") -> #N/A | I47: =IF(SalesBrekdown!$B13<>"",SalesBrekdown!$C13,"") ->  | J47: =IF($H47<>"#N/A",SalesBrekdown!D13,"#N/A") -> #N/A | K47: =IF(SalesBrekdown!$B13<>"",SalesBrekdown!E13,"") ->  | X47: =IF(News!D8="","",News!D8) ->  | AF47: 稅後淨利率 | AG47: =PL_Q!AS53 -> 30.9388812 | AH47: =PL_Q!AT53 -> 31.56771522 | AI47: =PL_Q!AU53 -> 28.51771076 | AJ47: =PL_Q!AV53 -> 23.64574094 | AK47: =PL_Q!AW53 -> 28.9670261 | AL47: =PL_Q!AX53 -> 30.48387549 | AN47: =FIN!A48 -> 所得稅費用 | AO47: =FIN!B48 -> 2266163 | AP47: =FIN!C48 -> 3718000 | AQ47: =FIN!D48 -> 5125000 | AR47: =FIN!E48 -> 7108000 | AS47: =FIN!F48 -> 5330000
AN48: =FIN!A49 -> 少數股東應佔溢利 | AO48: =FIN!B49 -> 52981 | AP48: =FIN!C49 -> 61000 | AQ48: =FIN!D49 -> 78000 | AR48: =FIN!E49 -> 302000 | AS48: =FIN!F49 -> 228000
H49: =YEAR(SalesBrekdown!A31) -> 2015 | I49: 產銷組合-地區別 | W49: 十大股東 | X49: ="資料時間"&TEXT('Main Share Holder'!A3,"YYYY/MM") -> 資料時間2016/06 | AN49: =FIN!A50 -> 本公司股東應佔溢利 | AO49: =FIN!B50 -> 12731871 | AP49: =FIN!C50 -> 15502000 | AQ49: =FIN!D50 -> 23810000 | AR49: =FIN!E50 -> 28806000 | AS49: =FIN!F50 -> 19920000
H50: 地區 | I50: =SalesBrekdown!C30 -> 收入 | J50: =SalesBrekdown!D30 -> 比率 | K50: =SalesBrekdown!E30 -> 幣別 | W50: 持股人名稱 | AB50: 持股種類 | AC50: ='Main Share Holder'!D2 -> 目前持股 | AD50: ='Main Share Holder'!E2 -> 直接權益 | AG50: ='Main Share Holder'!F2 -> 間接權益 | AH50: ='Main Share Holder'!G2 -> 家族權益 | AI50: ='Main Share Holder'!H2 -> 公司權益 | AJ50: ='Main Share Holder'!I2 -> 其他權益 | AK50: ='Main Share Holder'!J2 -> 持股率 | AL50: 與上期% | AN50: =FIN!A51 -> 基本每股盈餘 | AO50: =FIN!B51 -> 696.5 | AP50: =FIN!C51 -> 846.4 | AQ50: =FIN!D51 -> 257.9 | AR50: =FIN!E51 -> 309.7 | AS50: =FIN!F51 -> 212.8
H51: =IF(SalesBrekdown!B31<>"",IF(ISERROR(FIND("_",SalesBrekdown!B31,1)),SalesBrekdown!B31,""),"") -> PRC 中國 | I51: =IF($H51<>"",SalesBrekdown!C31,"") -> 96251000 | J51: =IF($H51<>"",SalesBrekdown!D31,"") -> 93.57 | K51: =IF($H51<>"",SalesBrekdown!E31,"") -> RMB | W51: =IF('Main Share Holder'!B3="","",'Main Share Holder'!B3) -> MIH TC | AB51: =IF('Main Share Holder'!C3="","",'Main Share Holder'!C3) -> 主要股東 | AC51: =IF('Main Share Holder'!D3="","",'Main Share Holder'!D3) -> 3151201900 | AD51: =IF('Main Share Holder'!E3="","",'Main Share Holder'!E3) -> 0 | AG51: =IF('Main Share Holder'!F3="","",'Main Share Holder'!F3) -> 3151201900 | AH51: =IF('Main Share Holder'!G3="","",'Main Share Holder'!G3) -> 0 | AI51: =IF('Main Share Holder'!H3="","",'Main Share Holder'!H3) -> 0 | AJ51: =IF('Main Share Holder'!I3="","",'Main Share Holder'!I3) -> 0 | AK51: =IF('Main Share Holder'!J3="","",'Main Share Holder'!J3) -> 33.49 | AL51: =IF('Main Share Holder'!L3="","",'Main Share Holder'!L3) -> -0.02 | AN51: 現金流量表
H52: =IF(SalesBrekdown!B32<>"",IF(ISERROR(FIND("_",SalesBrekdown!B32,1)),SalesBrekdown!B32,""),"") -> OTH 其他地區 | I52: =IF($H52<>"",SalesBrekdown!C32,"") -> 6612000 | J52: =IF($H52<>"",SalesBrekdown!D32,"") -> 6.43 | K52: =IF($H52<>"",SalesBrekdown!E32,"") -> RMB | W52: =IF('Main Share Holder'!B4="","",'Main Share Holder'!B4) -> Advance Data Services Limited | AB52: =IF('Main Share Holder'!C4="","",'Main Share Holder'!C4) -> 主要股東 | AC52: =IF('Main Share Holder'!D4="","",'Main Share Holder'!D4) -> 829507500 | AD52: =IF('Main Share Holder'!E4="","",'Main Share Holder'!E4) -> 0 | AG52: =IF('Main Share Holder'!F4="","",'Main Share Holder'!F4) -> 829507500 | AH52: =IF('Main Share Holder'!G4="","",'Main Share Holder'!G4) -> 0 | AI52: =IF('Main Share Holder'!H4="","",'Main Share Holder'!H4) -> 0 | AJ52: =IF('Main Share Holder'!I4="","",'Main Share Holder'!I4) -> 0 | AK52: =IF('Main Share Holder'!J4="","",'Main Share Holder'!J4) -> 8.82 | AL52: =IF('Main Share Holder'!L4="","",'Main Share Holder'!L4) -> -0.28 | AN52: =FIN!A52 -> 經營業務現金流入淨額 | AO52: =FIN!B52 -> 19429457 | AP52: =FIN!C52 -> 24374000 | AQ52: =FIN!D52 -> 32711000 | AR52: =FIN!E52 -> 45431000 | AS52: =FIN!F52 -> 28849000
H53: =IF(SalesBrekdown!B33<>"",IF(ISERROR(FIND("_",SalesBrekdown!B33,1)),SalesBrekdown!B33,""),"") ->  | I53: =IF($H53<>"",SalesBrekdown!C33,"") ->  | J53: =IF($H53<>"",SalesBrekdown!D33,"") ->  | K53: =IF($H53<>"",SalesBrekdown!E33,"") ->  | W53: =IF('Main Share Holder'!B5="","",'Main Share Holder'!B5) -> 馬化騰 | AB53: =IF('Main Share Holder'!C5="","",'Main Share Holder'!C5) -> 董監事 | AC53: =IF('Main Share Holder'!D5="","",'Main Share Holder'!D5) -> 829507500 | AD53: =IF('Main Share Holder'!E5="","",'Main Share Holder'!E5) -> 829507500 | AG53: =IF('Main Share Holder'!F5="","",'Main Share Holder'!F5) -> 0 | AH53: =IF('Main Share Holder'!G5="","",'Main Share Holder'!G5) -> 0 | AI53: =IF('Main Share Holder'!H5="","",'Main Share Holder'!H5) -> 0 | AJ53: =IF('Main Share Holder'!I5="","",'Main Share Holder'!I5) -> 0 | AK53: =IF('Main Share Holder'!J5="","",'Main Share Holder'!J5) -> 8.82 | AL53: =IF('Main Share Holder'!L5="","",'Main Share Holder'!L5) -> 8.82 | AN53: =FIN!A53 -> 投資活動之現金流出淨額 | AO53: =FIN!B53 -> -16270208 | AP53: =FIN!C53 -> -19134000 | AQ53: =FIN!D53 -> -28388000 | AR53: =FIN!E53 -> -63605000 | AS53: =FIN!F53 -> -21692000
H54: =IF(SalesBrekdown!B34<>"",IF(ISERROR(FIND("_",SalesBrekdown!B34,1)),SalesBrekdown!B34,""),"") ->  | I54: =IF($H54<>"",SalesBrekdown!C34,"") ->  | J54: =IF($H54<>"",SalesBrekdown!D34,"") ->  | K54: =IF($H54<>"",SalesBrekdown!E34,"") ->  | W54: =IF('Main Share Holder'!B6="","",'Main Share Holder'!B6) -> JPMorgan Chase & Co. | AB54: =IF('Main Share Holder'!C6="","",'Main Share Holder'!C6) -> 主要股東 | AC54: =IF('Main Share Holder'!D6="","",'Main Share Holder'!D6) -> 659777201 | AD54: =IF('Main Share Holder'!E6="","",'Main Share Holder'!E6) -> 318472097 | AG54: =IF('Main Share Holder'!F6="","",'Main Share Holder'!F6) -> 341305104 | AH54: =IF('Main Share Holder'!G6="","",'Main Share Holder'!G6) -> 0 | AI54: =IF('Main Share Holder'!H6="","",'Main Share Holder'!H6) -> 0 | AJ54: =IF('Main Share Holder'!I6="","",'Main Share Holder'!I6) -> 0 | AK54: =IF('Main Share Holder'!J6="","",'Main Share Holder'!J6) -> 7.01 | AL54: =IF('Main Share Holder'!L6="","",'Main Share Holder'!L6) -> 0.77 | AN54: =FIN!A54 -> 融資活動之現金流入淨額 | AO54: =FIN!B54 -> -2385978 | AP54: =FIN!C54 -> 1708000 | AQ54: =FIN!D54 -> 18350000 | AR54: =FIN!E54 -> 18528000 | AS54: =FIN!F54 -> 12704000
H55: =IF(SalesBrekdown!B35<>"",IF(ISERROR(FIND("_",SalesBrekdown!B35,1)),SalesBrekdown!B35,""),"") ->  | I55: =IF($H55<>"",SalesBrekdown!C35,"") ->  | J55: =IF($H55<>"",SalesBrekdown!D35,"") ->  | K55: =IF($H55<>"",SalesBrekdown!E35,"") ->  | W55: =IF('Main Share Holder'!B7="","",'Main Share Holder'!B7) -> 劉熾平 | AB55: =IF('Main Share Holder'!C7="","",'Main Share Holder'!C7) -> 董監事 | AC55: =IF('Main Share Holder'!D7="","",'Main Share Holder'!D7) -> 45618000 | AD55: =IF('Main Share Holder'!E7="","",'Main Share Holder'!E7) -> 45618000 | AG55: =IF('Main Share Holder'!F7="","",'Main Share Holder'!F7) -> 0 | AH55: =IF('Main Share Holder'!G7="","",'Main Share Holder'!G7) -> 0 | AI55: =IF('Main Share Holder'!H7="","",'Main Share Holder'!H7) -> 0 | AJ55: =IF('Main Share Holder'!I7="","",'Main Share Holder'!I7) -> 0 | AK55: =IF('Main Share Holder'!J7="","",'Main Share Holder'!J7) -> 0.48 | AL55: =IF('Main Share Holder'!L7="","",'Main Share Holder'!L7) -> 0.48 | AN55: =FIN!A55 -> 本期產生現金流量-TEJ | AO55: =FIN!B55 -> 773271 | AP55: =FIN!C55 -> 6948000 | AQ55: =FIN!D55 -> 22673000 | AR55: =FIN!E55 -> 354000 | AS55: =FIN!F55 -> 19861000
H56: =IF(SalesBrekdown!B36<>"",IF(ISERROR(FIND("_",SalesBrekdown!B36,1)),SalesBrekdown!B36,""),"") ->  | I56: =IF($H56<>"",SalesBrekdown!C36,"") ->  | J56: =IF($H56<>"",SalesBrekdown!D36,"") ->  | K56: =IF($H56<>"",SalesBrekdown!E36,"") ->  | W56: =IF('Main Share Holder'!B8="","",'Main Share Holder'!B8) -> Iain Ferguson Bruce | AB56: =IF('Main Share Holder'!C8="","",'Main Share Holder'!C8) -> 董監事 | AC56: =IF('Main Share Holder'!D8="","",'Main Share Holder'!D8) -> 490000 | AD56: =IF('Main Share Holder'!E8="","",'Main Share Holder'!E8) -> 490000 | AG56: =IF('Main Share Holder'!F8="","",'Main Share Holder'!F8) -> 0 | AH56: =IF('Main Share Holder'!G8="","",'Main Share Holder'!G8) -> 0 | AI56: =IF('Main Share Holder'!H8="","",'Main Share Holder'!H8) -> 0 | AJ56: =IF('Main Share Holder'!I8="","",'Main Share Holder'!I8) -> 0 | AK56: =IF('Main Share Holder'!J8="","",'Main Share Holder'!J8) -> 0.01 | AL56: =IF('Main Share Holder'!L8="","",'Main Share Holder'!L8) -> 0.01 | AN56: 財務比率分析
H57: =IF(SalesBrekdown!B37<>"",IF(ISERROR(FIND("_",SalesBrekdown!B37,1)),SalesBrekdown!B37,""),"") ->  | I57: =IF($H57<>"",SalesBrekdown!C37,"") ->  | J57: =IF($H57<>"",SalesBrekdown!D37,"") ->  | K57: =IF($H57<>"",SalesBrekdown!E37,"") ->  | W57: =IF('Main Share Holder'!B9="","",'Main Share Holder'!B9) -> Ian Charles Stone | AB57: =IF('Main Share Holder'!C9="","",'Main Share Holder'!C9) -> 董監事 | AC57: =IF('Main Share Holder'!D9="","",'Main Share Holder'!D9) -> 465000 | AD57: =IF('Main Share Holder'!E9="","",'Main Share Holder'!E9) -> 465000 | AG57: =IF('Main Share Holder'!F9="","",'Main Share Holder'!F9) -> 0 | AH57: =IF('Main Share Holder'!G9="","",'Main Share Holder'!G9) -> 0 | AI57: =IF('Main Share Holder'!H9="","",'Main Share Holder'!H9) -> 0 | AJ57: =IF('Main Share Holder'!I9="","",'Main Share Holder'!I9) -> 0 | AK57: =IF('Main Share Holder'!J9="","",'Main Share Holder'!J9) -> 0 | AL57: =IF('Main Share Holder'!L9="","",'Main Share Holder'!L9) -> 0 | AN57: =FIN!A56 -> 流動比率 | AO57: =FIN!B56 -> 176.67 | AP57: =FIN!C56 -> 161.38 | AQ57: =FIN!D56 -> 150.54 | AR57: =FIN!E56 -> 124.9 | AS57: =FIN!F56 -> 118.63
H58: =IF(SalesBrekdown!B38<>"",IF(ISERROR(FIND("_",SalesBrekdown!B38,1)),SalesBrekdown!B38,""),"") ->  | I58: =IF($H58<>"",SalesBrekdown!C38,"") ->  | J58: =IF($H58<>"",SalesBrekdown!D38,"") ->  | K58: =IF($H58<>"",SalesBrekdown!E38,"") ->  | W58: =IF('Main Share Holder'!B10="","",'Main Share Holder'!B10) -> 李東生 | AB58: =IF('Main Share Holder'!C10="","",'Main Share Holder'!C10) -> 董監事 | AC58: =IF('Main Share Holder'!D10="","",'Main Share Holder'!D10) -> 36300 | AD58: =IF('Main Share Holder'!E10="","",'Main Share Holder'!E10) -> 36300 | AG58: =IF('Main Share Holder'!F10="","",'Main Share Holder'!F10) -> 0 | AH58: =IF('Main Share Holder'!G10="","",'Main Share Holder'!G10) -> 0 | AI58: =IF('Main Share Holder'!H10="","",'Main Share Holder'!H10) -> 0 | AJ58: =IF('Main Share Holder'!I10="","",'Main Share Holder'!I10) -> 0 | AK58: =IF('Main Share Holder'!J10="","",'Main Share Holder'!J10) -> 0 | AL58: =IF('Main Share Holder'!L10="","",'Main Share Holder'!L10) -> 0 | AN58: =FIN!A57 -> 速動比率 | AO58: =FIN!B57 -> 164.8 | AP58: =FIN!C57 -> 153.04 | AQ58: =FIN!D57 -> 145.07 | AR58: =FIN!E57 -> 123.75 | AS58: =FIN!F57 -> 112.09
H59: =IF(SalesBrekdown!B39<>"",IF(ISERROR(FIND("_",SalesBrekdown!B39,1)),SalesBrekdown!B39,""),"") ->  | I59: =IF($H59<>"",SalesBrekdown!C39,"") ->  | J59: =IF($H59<>"",SalesBrekdown!D39,"") ->  | K59: =IF($H59<>"",SalesBrekdown!E39,"") ->  | W59: =IF('Main Share Holder'!B11="","",'Main Share Holder'!B11) ->  | AB59: =IF('Main Share Holder'!C11="","",'Main Share Holder'!C11) ->  | AC59: =IF('Main Share Holder'!D11="","",'Main Share Holder'!D11) ->  | AD59: =IF('Main Share Holder'!E11="","",'Main Share Holder'!E11) ->  | AG59: =IF('Main Share Holder'!F11="","",'Main Share Holder'!F11) ->  | AH59: =IF('Main Share Holder'!G11="","",'Main Share Holder'!G11) ->  | AI59: =IF('Main Share Holder'!H11="","",'Main Share Holder'!H11) ->  | AJ59: =IF('Main Share Holder'!I11="","",'Main Share Holder'!I11) ->  | AK59: =IF('Main Share Holder'!J11="","",'Main Share Holder'!J11) ->  | AL59: =IF('Main Share Holder'!L11="","",'Main Share Holder'!L11) ->  | AN59: =FIN!A58 -> 負債比率 | AO59: =FIN!B58 -> 43.99 | AP59: =FIN!C58 -> 45.48 | AQ59: =FIN!D58 -> 52.02 | AR59: =FIN!E58 -> 60.2 | AS59: =FIN!F58 -> 66.56
H60: =IF(SalesBrekdown!B40<>"",IF(ISERROR(FIND("_",SalesBrekdown!B40,1)),SalesBrekdown!B40,""),"") ->  | I60: =IF($H60<>"",SalesBrekdown!C40,"") ->  | J60: =IF($H60<>"",SalesBrekdown!D40,"") ->  | K60: =IF($H60<>"",SalesBrekdown!E40,"") ->  | W60: =IF('Main Share Holder'!B12="","",'Main Share Holder'!B12) ->  | AB60: =IF('Main Share Holder'!C12="","",'Main Share Holder'!C12) ->  | AC60: =IF('Main Share Holder'!D12="","",'Main Share Holder'!D12) ->  | AD60: =IF('Main Share Holder'!E12="","",'Main Share Holder'!E12) ->  | AG60: =IF('Main Share Holder'!F12="","",'Main Share Holder'!F12) ->  | AH60: =IF('Main Share Holder'!G12="","",'Main Share Holder'!G12) ->  | AI60: =IF('Main Share Holder'!H12="","",'Main Share Holder'!H12) ->  | AJ60: =IF('Main Share Holder'!I12="","",'Main Share Holder'!I12) ->  | AK60: =IF('Main Share Holder'!J12="","",'Main Share Holder'!J12) ->  | AL60: =IF('Main Share Holder'!L12="","",'Main Share Holder'!L12) ->  | AN60: =FIN!A59 -> 每股淨值(A) | AO60: =FIN!B59 -> 22.28 | AP60: =FIN!C59 -> 31.12 | AQ60: =FIN!D59 -> 8.54 | AR60: =FIN!E59 -> 12.76 | AS60: =FIN!F59 -> 15.01
H61: =IF(SalesBrekdown!B41<>"",IF(ISERROR(FIND("_",SalesBrekdown!B41,1)),SalesBrekdown!B41,""),"") ->  | I61: =IF($H61<>"",SalesBrekdown!C41,"") ->  | J61: =IF($H61<>"",SalesBrekdown!D41,"") ->  | K61: =IF($H61<>"",SalesBrekdown!E41,"") ->  | W61: =IF('Main Share Holder'!B13="","",'Main Share Holder'!B13) ->  | AB61: =IF('Main Share Holder'!C13="","",'Main Share Holder'!C13) ->  | AC61: =IF('Main Share Holder'!D13="","",'Main Share Holder'!D13) ->  | AD61: =IF('Main Share Holder'!E13="","",'Main Share Holder'!E13) ->  | AG61: =IF('Main Share Holder'!F13="","",'Main Share Holder'!F13) ->  | AH61: =IF('Main Share Holder'!G13="","",'Main Share Holder'!G13) ->  | AI61: =IF('Main Share Holder'!H13="","",'Main Share Holder'!H13) ->  | AJ61: =IF('Main Share Holder'!I13="","",'Main Share Holder'!I13) ->  | AK61: =IF('Main Share Holder'!J13="","",'Main Share Holder'!J13) ->  | AL61: =IF('Main Share Holder'!L13="","",'Main Share Holder'!L13) ->  | AN61: =FIN!A60 -> 平均售貨天數 | AO61: =FIN!B60 -> 5.69 | AP61: =FIN!C60 -> 12.83 | AQ61: =FIN!D60 -> 9.62 | AR61: =FIN!E60 -> 2.04 | AS61: =FIN!F60 -> 1.39
W62: =IF('Main Share Holder'!B14="","",'Main Share Holder'!B14) ->  | AB62: =IF('Main Share Holder'!C14="","",'Main Share Holder'!C14) ->  | AC62: =IF('Main Share Holder'!D14="","",'Main Share Holder'!D14) ->  | AD62: =IF('Main Share Holder'!E14="","",'Main Share Holder'!E14) ->  | AG62: =IF('Main Share Holder'!F14="","",'Main Share Holder'!F14) ->  | AH62: =IF('Main Share Holder'!G14="","",'Main Share Holder'!G14) ->  | AI62: =IF('Main Share Holder'!H14="","",'Main Share Holder'!H14) ->  | AJ62: =IF('Main Share Holder'!I14="","",'Main Share Holder'!I14) ->  | AK62: =IF('Main Share Holder'!J14="","",'Main Share Holder'!J14) ->  | AL62: =IF('Main Share Holder'!L14="","",'Main Share Holder'!L14) ->  | AN62: =FIN!A61 -> 應收帳款收現天數 | AO62: =FIN!B61 -> 18.19 | AP62: =FIN!C61 -> 16.03 | AQ62: =FIN!D61 -> 17.44 | AR62: =FIN!E61 -> 20.67 | AS62: =FIN!F61 -> 21.34

Sheet Attribute
A1: 00700 騰訊控股
A2: 上市別 | B2: 港股通名單 | C2: 公司全稱(中) | D2: 公司地址 | E2: 電話 | F2: 管理者1 | G2: 管理者2 | H2: 管理者3 | I2: 管理者4 | J2: 財務總監 | K2: 董事會秘書 | L2: 上市日期 | M2: 註冊地 | N2: 面額 | O2: 幣別(IPO&交易) | P2: 幣別(面額) | Q2: 買賣單位 | R2: 交易所業務類別 | S2: 中國 A股代碼 | T2: 中國 B股代碼 | U2: 集團名稱
A3: 香港交易所主版 | B3: Y | C3: 騰訊控股有限公司 | D3: 香港灣仔皇后大道東 1號太古廣場 3座29樓 | E3: 852-21795122 | F3: 馬化騰(主席) | G3: 馬化騰(行政總裁) | J3: 羅碩瀚 | K3: 劉淑儀 | L3: 2004-06-16 | M3: 開曼群島 | N3: 2e-05 | O3: HKD | P3: HKD | Q3: 100 | R3: 702 軟件服務

Sheet Main Share Holder
A1: 00700 騰訊控股
A2: 年月 | B2: 持股人姓名 | C2: 職稱1 | D2: 目前持股 | E2: 直接權益 | F2: 間接權益 | G2: 家族權益 | H2: 公司權益 | I2: 其他權益 | J2: 持股率 | K2: 上期持股率 | O2: 2015-12-31 | P2: 2016-06-30
A3: 2016-06-30 | B3: MIH TC | C3: 主要股東 | D3: 3151201900 | E3: 0 | F3: 3151201900 | G3: 0 | H3: 0 | I3: 0 | J3: 33.49 | K3: =IF(ISERROR(VLOOKUP(B3,$N:$P,2,0)),"",VLOOKUP(B3,$N:$P,2,0)) -> 33.51 | L3: =IF(ISERROR(J3-K3),"",J3-K3) -> -0.02 | N3: 持股人姓名 | O3: 持股率 | P3: 持股率
A4: 2016-06-30 | B4: Advance Data Services Limited | C4: 主要股東 | D4: 829507500 | E4: 0 | F4: 829507500 | G4: 0 | H4: 0 | I4: 0 | J4: 8.82 | K4: =IF(ISERROR(VLOOKUP(B4,$N:$P,2,0)),"",VLOOKUP(B4,$N:$P,2,0)) -> 9.1 | L4: =IF(ISERROR(J4-K4),"",J4-K4) -> -0.28 | N4: Advance Data Services Limited | O4: 9.1 | P4: 8.82
A5: 2016-06-30 | B5: 馬化騰 | C5: 董監事 | D5: 829507500 | E5: 829507500 | F5: 0 | G5: 0 | H5: 0 | I5: 0 | J5: 8.82 | K5: 0 | L5: 8.82 | N5: Charles St Leger Searle | O5: 0
A6: 2016-06-30 | B6: JPMorgan Chase & Co. | C6: 主要股東 | D6: 659777201 | E6: 318472097 | F6: 341305104 | G6: 0 | H6: 0 | I6: 0 | J6: 7.01 | K6: 6.24 | L6: 0.77 | N6: Iain Ferguson Bruce | O6: 0 | P6: 0.01
A7: 2016-06-30 | B7: 劉熾平 | C7: 董監事 | D7: 45618000 | E7: 45618000 | F7: 0 | G7: 0 | H7: 0 | I7: 0 | J7: 0.48 | K7: 0 | L7: 0.48 | N7: Ian Charles Stone | O7: 0 | P7: 0
A8: 2016-06-30 | B8: Iain Ferguson Bruce | C8: 董監事 | D8: 490000 | E8: 490000 | F8: 0 | G8: 0 | H8: 0 | I8: 0 | J8: 0.01 | K8: 0 | L8: 0.01 | N8: Jacobus Petrus (Koos) Bekker | O8: 0
A9: 2016-06-30 | B9: Ian Charles Stone | C9: 董監事 | D9: 465000 | E9: 465000 | F9: 0 | G9: 0 | H9: 0 | I9: 0 | J9: 0 | K9: 0 | L9: 0 | N9: JPMorgan Chase & Co. | O9: 6.24 | P9: 7.01
A10: 2016-06-30 | B10: 李東生 | C10: 董監事 | D10: 36300 | E10: 36300 | F10: 0 | G10: 0 | H10: 0 | I10: 0 | J10: 0 | K10: 0 | L10: 0 | N10: MIH TC | O10: 33.51 | P10: 33.49
N11: 李東生 | O11: 0 | P11: 0
N12: 馬化騰 | O12: 0 | P12: 8.82
N13: 劉熾平 | O13: 0 | P13: 0.48

Sheet SalesBrekdown
A1: 00700 騰訊控股
A2: 年月 | B2: 營業項目 | C2: 收入 | D2: 比率 | E2: 幣別
A3: 2016-06-30 | B3: B52 互聯網業務 | C3: 50644000 | D3: 74.82 | E3: RMB
A4: 2016-06-30 | B4: A28 廣告收入 | C4: 11233000 | D4: 16.6 | E4: RMB
A5: 2016-06-30 | B5: 999 其他 | C5: 5809000 | D5: 8.58 | E5: RMB
A30: 年月 | B30: 營業項目 | C30: 收入 | D30: 比率 | E30: 幣別
A31: 2015-12-31 | B31: PRC 中國 | C31: 96251000 | D31: 93.57 | E31: RMB
A32: 2015-12-31 | B32: OTH 其他地區 | C32: 6612000 | D32: 6.43 | E32: RMB

Sheet SalesBrekdown1
A1: 00700 騰訊控股
A2: 年月 | B2: 營業項目 | C2: 比率 | G2: 加總 - 比率 | H2: 欄標籤
A3: 2013-12-31 | B3: 999 其他 | C3: 1.03 | G3: 列標籤 | H3: 999 其他 | I3: A28 廣告收入 | J3: B52 互聯網業務 | K3: Q26 電子商務 | L3: 總計
A4: 2013-12-31 | B4: A28 廣告收入 | C4: 8.33 | G4: 2013-12-31 | H4: 1.03 | I4: 8.33 | J4: 74.43 | K4: 16.21 | L4: 100
A5: 2013-12-31 | B5: B52 互聯網業務 | C5: 74.43 | G5: 2014-06-30 | H5: 2.44 | I5: 8.5 | J5: 78.98 | K5: 10.09 | L5: 100.01
A6: 2013-12-31 | B6: Q26 電子商務 | C6: 16.21 | G6: 2014-12-31 | H6: 3.24 | I6: 10.53 | J6: 80.21 | K6: 6.02 | L6: 100
A7: 2014-06-30 | B7: 999 其他 | C7: 2.44 | G7: 2015-06-30 | H7: 4.31 | I7: 14.83 | J7: 80.85 | L7: 99.99
A8: 2014-06-30 | B8: A28 廣告收入 | C8: 8.5 | G8: 2015-12-31 | H8: 4.59 | I8: 16.98 | J8: 78.42 | L8: 99.99
A9: 2014-06-30 | B9: B52 互聯網業務 | C9: 78.98 | G9: 2016-06-30 | H9: 8.58 | I9: 16.6 | J9: 74.82 | L9: 100
A10: 2014-06-30 | B10: Q26 電子商務 | C10: 10.09 | G10: 總計 | H10: 24.19 | I10: 75.77 | J10: 467.71 | K10: 32.32 | L10: 599.99
A11: 2014-12-31 | B11: 999 其他 | C11: 3.24
A12: 2014-12-31 | B12: A28 廣告收入 | C12: 10.53
A13: 2014-12-31 | B13: B52 互聯網業務 | C13: 80.21
A14: 2014-12-31 | B14: Q26 電子商務 | C14: 6.02
A15: 2015-06-30 | B15: 999 其他 | C15: 4.31
A16: 2015-06-30 | B16: A28 廣告收入 | C16: 14.83
A17: 2015-06-30 | B17: B52 互聯網業務 | C17: 80.85
A18: 2015-12-31 | B18: 999 其他 | C18: 4.59
A19: 2015-12-31 | B19: A28 廣告收入 | C19: 16.98
A20: 2015-12-31 | B20: B52 互聯網業務 | C20: 78.42
A21: 2016-06-30 | B21: 999 其他 | C21: 8.58
A22: 2016-06-30 | B22: A28 廣告收入 | C22: 16.6
A23: 2016-06-30 | B23: B52 互聯網業務 | C23: 74.82

Sheet SalesBrekdown2
A1: 00700 騰訊控股
A2: 年月 | B2: 營業項目 | C2: 比率 | G2: 加總 - 比率 | H2: 欄標籤
A3: 2013-12-31 | B3: OTH 其他地區 | C3: 7.38 | G3: 列標籤 | H3: PRC 中國 | I3: OTH 其他地區 | J3: 總計
A4: 2013-12-31 | B4: PRC 中國 | C4: 92.62 | G4: 2013-12-31 | H4: 92.62 | I4: 7.38 | J4: 100
A5: 2014-06-30 | B5: OTH 其他地區 | C5: 7.98 | G5: 2014-06-30 | H5: 92.02 | I5: 7.98 | J5: 100
A6: 2014-06-30 | B6: PRC 中國 | C6: 92.02 | G6: 2014-12-31 | H6: 91.8 | I6: 8.2 | J6: 100
A7: 2014-12-31 | B7: OTH 其他地區 | C7: 8.2 | G7: 2015-06-30 | H7: 7.76 | I7: 92.24 | J7: 100
A8: 2014-12-31 | B8: PRC 中國 | C8: 91.8 | G8: 2015-12-31 | H8: 93.57 | I8: 6.43 | J8: 100
A9: 2015-06-30 | B9: OTH 其他地區 | C9: 92.24 | G9: 總計 | H9: 377.77 | I9: 122.23 | J9: 500
A10: 2015-06-30 | B10: PRC 中國 | C10: 7.76
A11: 2015-12-31 | B11: OTH 其他地區 | C11: 6.43
A12: 2015-12-31 | B12: PRC 中國 | C12: 93.57

Sheet Srock Price
A1: 00700 騰訊控股 | H1: 股價相關表格用 | M1: 週股價走勢－40W | R1: 月股價走勢－52M | W1: =Report!B30 -> 20 | X1: =W1+Report!$D$30 -> 40 | Y1: =X1+Report!$D$30 -> 60 | Z1: =Y1+Report!$D$30 -> 80 | AC1: =Report!B47 -> 10 | AD1: =AC1+Report!$D$47 -> 15 | AE1: =AD1+Report!$D$47 -> 20 | AF1: =AE1+Report!$D$47 -> 25 | AG1: =AF1+Report!$D$47 -> 30
A2: 年月日 | B2: 成交量(千股)_週 | C2: 收盤價(元) | D2: 報酬率(％)_週 | E2: 幣別 | H2: Data Field | I2: 2016-11-07 | L2: 年月日 | M2: 收盤價(元) | N2: 成交量(千股)_週 | Q2: 年月日 | R2: 收盤價(元) | S2: 本益比-TEJ | T2: 股價淨值比-TEJ | W2: =W1&"*PE" -> 20*PE | X2: =X1&"*PE" -> 40*PE | Y2: =Y1&"*PE" -> 60*PE | Z2: =Z1&"*PE" -> 80*PE | AC2: =AC1&"*PB" -> 10*PB | AD2: =AD1&"*PB" -> 15*PB | AE2: =AE1&"*PB" -> 20*PB | AF2: =AF1&"*PB" -> 25*PB | AG2: =AG1&"*PB" -> 30*PB
A3: 2016-04-15 | B3: 90963 | C3: 164.806 | D3: 3.3126 | E3: HKD | H3: 本益比-TEJ | I3: 47.37 | L3: 2016-02-05 | M3: 143.47 | N3: 89031 | Q3: 2012-11-30 | R3: 253.2 | S3: 34.7 | T3: 11.07 | V3: =IF(Q3="",NA(),TEXT($Q3,"YYYY/MM")) -> 2012/11 | W3: =IF($R3="",NA(),W$1*$R3/$S3) -> 145.9365994 | X3: =IF($R3="",NA(),X$1*$R3/$S3) -> 291.8731988 | Y3: =IF($R3="",NA(),Y$1*$R3/$S3) -> 437.8097983 | Z3: =IF($R3="",NA(),Z$1*$R3/$S3) -> 583.7463977 | AC3: =IF($R3="",NA(),AC$1*$R3/$T3) -> 228.7262873 | AD3: =IF($R3="",NA(),AD$1*$R3/$T3) -> 343.0894309 | AE3: 457.4525745 | AF3: 571.8157182 | AG3: 686.1788618
A4: 2016-04-22 | B4: 60168 | C4: 162.313 | D4: -1.5123 | E4: HKD | H4: 股價淨值比-TEJ | I4: 11.48 | L4: 2016-02-12 | M4: 132.901 | N4: 61082 | Q4: 2012-12-31 | R4: 249 | S4: 34.15 | T4: 10.89 | V4: =IF(Q4="",NA(),TEXT($Q4,"YYYY/MM")) -> 2012/12 | W4: =IF($R4="",NA(),W$1*$R4/$S4) -> 145.8272328 | X4: 291.6544656 | Y4: 437.4816984 | Z4: 583.3089312 | AC4: =IF($R4="",NA(),AC$1*$R4/$T4) -> 228.6501377 | AD4: 342.9752066 | AE4: 457.3002755 | AF4: 571.6253444 | AG4: 685.9504132
A5: 2016-04-29 | B5: 60488 | C5: 158.425 | D5: -2.3956 | E5: HKD | H5: 收盤價(元) | I5: 204.2 | L5: 2016-02-19 | M5: 140.778 | N5: 87332 | Q5: 2013-01-31 | R5: 271.4 | S5: 37.24 | T5: 11.87 | V5: 2013/01 | W5: 145.7572503 | X5: 291.5145005 | Y5: 437.2717508 | Z5: 583.0290011 | AC5: 228.6436394 | AD5: 342.9654591 | AE5: 457.2872789 | AF5: 571.6090986 | AG5: 685.9309183
A6: 2016-05-06 | B6: 61251 | C6: 153.44 | D6: -3.1466 | E6: HKD | H6: 報酬率(％) | I6: 2.1 | L6: 2016-02-26 | M6: 142.273 | N6: 64860 | Q6: 2013-02-28 | R6: 268.2 | S6: 36.8 | T6: 11.73 | V6: 2013/02 | W6: 145.7608696 | X6: 291.5217391 | Y6: 437.2826087 | Z6: 583.0434783 | AC6: 228.6445013 | AD6: 342.9667519 | AE6: 457.2890026 | AF6: 571.6112532 | AG6: 685.9335038
A7: 2016-05-13 | B7: 64226 | C7: 154.636 | D7: 0.7798 | E7: HKD | H7: 成交量(千股) | I7: 16085 | L7: 2016-03-04 | M7: 146.76 | N7: 89943 | Q7: 2013-03-28 | R7: 246.8 | S7: 33.84 | T7: 10.79 | V7: 2013/03 | W7: 145.8628842 | X7: 291.7257683 | Y7: 437.5886525 | Z7: 583.4515366 | AC7: 228.7303058 | AD7: 343.0954588 | AE7: 457.4606117 | AF7: 571.8257646 | AG7: 686.1909175
A8: 2016-05-20 | B8: 119326 | C8: 158.5 | D8: 2.4952 | E8: HKD | H8: 成交值(千元) | I8: 3284762 | L8: 2016-03-11 | M8: 147.657 | N8: 66855 | Q8: 2013-04-30 | R8: 266.2 | S8: 36.42 | T8: 11.61 | V8: 2013/04 | W8: 146.1834157 | X8: 292.3668314 | Y8: 438.5502471 | Z8: 584.7336628 | AC8: 229.2850991 | AD8: 343.9276486 | AE8: 458.5701981 | AF8: 573.2127476 | AG8: 687.8552972
A9: 2016-05-27 | B9: 101856 | C9: 171.2 | D9: 8.0125 | E9: HKD | H9: 市值(千元) | I9: 1933154529 | L9: 2016-03-18 | M9: 157.428 | N9: 125468 | Q9: 2013-05-31 | R9: 307.8 | S9: 42.18 | T9: 13.45 | V9: 2013/05 | W9: 145.9459459 | X9: 291.8918919 | Y9: 437.8378378 | Z9: 583.7837838 | AC9: 228.8475836 | AD9: 343.2713755 | AE9: 457.6951673 | AF9: 572.1189591 | AG9: 686.5427509
A10: 2016-06-03 | B10: 144243 | C10: 170.8 | D10: -0.2336 | E10: HKD | H10: 流通在外股數(千股) | I10: 9466966 | L10: 2016-03-24 | M10: 158.325 | N10: 72443 | Q10: 2013-06-28 | R10: 304.2 | S10: 35.43 | T10: 10.75 | V10: 2013/06 | W10: 171.7188823 | X10: 343.4377646 | Y10: 515.1566469 | Z10: 686.8755292 | AC10: 282.9767442 | AD10: 424.4651163 | AE10: 565.9534884 | AF10: 707.4418605 | AG10: 848.9302326
A11: 2016-06-10 | B11: 73643 | C11: 175.1 | D11: 2.5175 | E11: HKD | H11: 幣別 | I11: HKD | L11: 2016-04-01 | M11: 158.026 | N11: 71205 | Q11: 2013-07-31 | R11: 351.8 | S11: 41.09 | T11: 12.46 | V11: 2013/07 | W11: 171.2338769 | X11: 342.4677537 | Y11: 513.7016306 | Z11: 684.9355074 | AC11: 282.3434992 | AD11: 423.5152488 | AE11: 564.6869984 | AF11: 705.858748 | AG11: 847.0304976
A12: 2016-06-17 | B12: 90716 | C12: 168.9 | D12: -3.5409 | E12: HKD | H12: 買賣單位 | I12: 100 | L12: 2016-04-08 | M12: 159.522 | N12: 69196 | Q12: 2013-08-30 | R12: 363.6 | S12: 42.49 | T12: 12.89 | V12: 2013/08 | W12: 171.146152 | X12: 342.2923041 | Y12: 513.4384561 | Z12: 684.5846081 | AC12: 282.0791311 | AD12: 423.1186967 | AE12: 564.1582622 | AF12: 705.1978278 | AG12: 846.2373933
A13: 2016-06-24 | B13: 81978 | C13: 173.8 | D13: 2.901 | E13: HKD | H13: 週轉率(％) | I13: 0.17 | L13: 2016-04-15 | M13: 164.806 | N13: 90963 | Q13: 2013-09-30 | R13: 406.8 | S13: 47.56 | T13: 14.43 | V13: 2013/09 | W13: 171.0681245 | X13: 342.1362489 | Y13: 513.2043734 | Z13: 684.2724979 | AC13: 281.9126819 | AD13: 422.8690229 | AE13: 563.8253638 | AF13: 704.7817048 | AG13: 845.7380457
A14: 2016-06-30 | B14: 64083 | C14: 176.1 | D14: 1.3234 | E14: HKD | H14: 股價營收比-TEJ | I14: 13.27 | L14: 2016-04-22 | M14: 162.313 | N14: 60168 | Q14: 2013-10-31 | R14: 423.2 | S14: 49.49 | T14: 15.01 | V14: 2013/10 | W14: 171.0244494 | X14: 342.0488988 | Y14: 513.0733482 | Z14: 684.0977975 | AC14: 281.9453698 | AD14: 422.9180546 | AE14: 563.8907395 | AF14: 704.8634244 | AG14: 845.8361093
A15: 2016-07-08 | B15: 59291 | C15: 177 | D15: 0.5111 | E15: HKD | L15: 2016-04-29 | M15: 158.425 | N15: 60488 | Q15: 2013-11-29 | R15: 448.4 | S15: 46 | T15: 14.03 | V15: 2013/11 | W15: 194.9565217 | X15: 389.9130435 | Y15: 584.8695652 | Z15: 779.826087 | AC15: 319.6008553 | AD15: 479.401283 | AE15: 639.2017106 | AF15: 799.0021383 | AG15: 958.8025659
A16: 2016-07-15 | B16: 66058 | C16: 184.8 | D16: 4.4067 | E16: HKD | L16: 2016-05-06 | M16: 153.44 | N16: 61251 | Q16: 2013-12-31 | R16: 494.6 | S16: 50.81 | T16: 15.49 | V16: 2013/12 | W16: 194.6860854 | X16: 389.3721708 | Y16: 584.0582562 | Z16: 778.7443417 | AC16: 319.302776 | AD16: 478.954164 | AE16: 638.605552 | AF16: 798.25694 | AG16: 957.908328
A17: 2016-07-22 | B17: 57737 | C17: 185.2 | D17: 0.2164 | E17: HKD | H17: 股價相關表格用 | L17: 2016-05-13 | M17: 154.636 | N17: 64226 | Q17: 2014-01-30 | R17: 543.5 | S17: 55.83 | T17: 17.02 | V17: 2014/01 | W17: 194.6981909 | X17: 389.3963819 | Y17: 584.0945728 | Z17: 778.7927637 | AC17: 319.3301998 | AD17: 478.9952996 | AE17: 638.6603995 | AF17: 798.3254994 | AG17: 957.9905993
A18: 2016-07-29 | B18: 59582 | C18: 186.5 | D18: 0.7019 | E18: HKD | H18: 年月日 | I18: 60日最高(元) | J18: 60日最低(元) | L18: 2016-05-20 | M18: 158.5 | N18: 119326 | Q18: 2014-02-28 | R18: 622.5 | S18: 64.01 | T18: 19.52 | V18: 2014/02 | W18: 194.5008592 | X18: 389.0017185 | Y18: 583.5025777 | Z18: 778.003437 | AC18: 318.9036885 | AD18: 478.3555328 | AE18: 637.807377 | AF18: 797.2592213 | AG18: 956.7110656
A19: 2016-08-05 | B19: 58813 | C19: 184.6 | D19: -1.0187 | E19: HKD | H19: 2016-09-23 | I19: 220.8 | K19: =I19+J19 -> 220.8 | L19: 2016-05-27 | M19: 171.2 | N19: 101856 | Q19: 2014-03-31 | R19: 539.5 | S19: 55.49 | T19: 16.92 | V19: 2014/03 | W19: 194.4494504 | X19: 388.8989007 | Y19: 583.3483511 | Z19: 777.7978014 | AC19: 318.8534279 | AD19: 478.2801418 | AE19: 637.7068558 | AF19: 797.1335697 | AG19: 956.5602837
A20: 2016-08-12 | B20: 57087 | C20: 187.8 | D20: 1.7335 | E20: HKD | H20: 2016-08-11 | J20: 186.8 | K20: =I20+J20 -> 186.8 | L20: 2016-06-03 | M20: 170.8 | N20: 144243 | Q20: 2014-04-30 | R20: 483.2 | S20: 49.73 | T20: 15.16 | V20: 2014/04 | W20: 194.3293786 | X20: 388.6587573 | Y20: 582.9881359 | Z20: 777.3175146 | AC20: 318.7335092 | AD20: 478.1002639 | AE20: 637.4670185 | AF20: 796.8337731 | AG20: 956.2005277
A21: 2016-08-19 | B21: 110113 | C21: 201.8 | D21: 7.4548 | E21: HKD | L21: 2016-06-10 | M21: 175.1 | N21: 73643 | Q21: 2014-05-30 | R21: 109.3 | S21: 56.25 | T21: 17.15 | V21: 2014/05 | W21: 38.86222222 | X21: 77.72444444 | Y21: 116.5866667 | Z21: 155.4488889 | AC21: 63.73177843 | AD21: 95.59766764 | AE21: 127.4635569 | AF21: 159.3294461 | AG21: 191.1953353
A22: 2016-08-26 | B22: 53073 | C22: 200.4 | D22: -0.6938 | E22: HKD | L22: 2016-06-17 | M22: 168.9 | N22: 90716 | Q22: 2014-06-30 | R22: 118.2 | S22: 55.42 | T22: 14.75 | V22: 2014/06 | W22: 42.65608084 | X22: 85.31216167 | Y22: 127.9682425 | Z22: 170.6243233 | AC22: 80.13559322 | AD22: 120.2033898 | AE22: 160.2711864 | AF22: 200.3389831 | AG22: 240.4067797
A23: 2016-09-02 | B23: 66941 | C23: 201.8 | D23: 0.6986 | E23: HKD | L23: 2016-06-24 | M23: 173.8 | N23: 81978 | Q23: 2014-07-31 | R23: 128.4 | S23: 60.33 | T23: 16.06 | V23: 2014/07 | W23: 42.56588762 | X23: 85.13177524 | Y23: 127.6976629 | Z23: 170.2635505 | AC23: 79.9501868 | AD23: 119.9252802 | AE23: 159.9003736 | AF23: 199.875467 | AG23: 239.8505604
A24: 2016-09-09 | B24: 91338 | C24: 213.8 | D24: 5.9465 | E24: HKD | L24: 2016-06-30 | M24: 176.1 | N24: 64083 | Q24: 2014-08-29 | R24: 126.5 | S24: 59.44 | T24: 15.82 | V24: 2014/08 | W24: 42.56393001 | X24: 85.12786003 | Y24: 127.69179 | Z24: 170.2557201 | AC24: 79.96207332 | AD24: 119.94311 | AE24: 159.9241466 | AF24: 199.9051833 | AG24: 239.88622
A25: 2016-09-15 | B25: 60544 | C25: 209.8 | D25: -1.8708 | E25: HKD | H25: Data Field | I25: 2016-11-07 | L25: 2016-07-08 | M25: 177 | N25: 59291 | Q25: 2014-09-30 | R25: 115.5 | S25: 54.29 | T25: 14.45 | V25: 2014/09 | W25: 42.54927243 | X25: 85.09854485 | Y25: 127.6478173 | Z25: 170.1970897 | AC25: 79.93079585 | AD25: 119.8961938 | AE25: 159.8615917 | AF25: 199.8269896 | AG25: 239.7923875
A26: 2016-09-23 | B26: 84863 | C26: 218.2 | D26: 4.0037 | E26: HKD | H26: 未調整收盤價(元) | I26: 204.2 | L26: 2016-07-15 | M26: 184.8 | N26: 66058 | Q26: 2014-10-31 | R26: 123.6 | S26: 58.1 | T26: 15.47 | V26: 2014/10 | W26: 42.54733219 | X26: 85.09466437 | Y26: 127.6419966 | Z26: 170.1893287 | AC26: 79.89657401 | AD26: 119.844861 | AE26: 159.793148 | AF26: 199.741435 | AG26: 239.689722
A27: 2016-09-30 | B27: 67474 | C27: 213 | D27: -2.3831 | E27: HKD | H27: 日報酬率 % | I27: 2.1 | L27: 2016-07-22 | M27: 185.2 | N27: 57737 | Q27: 2014-11-28 | R27: 124 | S27: 46.34 | T27: 13.19 | V27: 2014/11 | W27: 53.5174795 | X27: 107.034959 | Y27: 160.5524385 | Z27: 214.069918 | AC27: 94.0106141 | AD27: 141.0159212 | AE27: 188.0212282 | AF27: 235.0265353 | AG27: 282.0318423
A28: 2016-10-07 | B28: 43966 | C28: 216.2 | D28: 1.5023 | E28: HKD | H28: 週報酬率 % | I28: -0.7775 | L28: 2016-07-29 | M28: 186.5 | N28: 59582 | Q28: 2014-12-31 | R28: 112.5 | S28: 42.06 | T28: 11.97 | V28: 2014/12 | W28: 53.49500713 | X28: 106.9900143 | Y28: 160.4850214 | Z28: 213.9800285 | AC28: 93.98496241 | AD28: 140.9774436 | AE28: 187.9699248 | AF28: 234.962406 | AG28: 281.9548872
A29: 2016-10-14 | B29: 60282 | C29: 209 | D29: -3.3303 | E29: HKD | H29: 月報酬率 % | I29: -5.5506 | L29: 2016-08-05 | M29: 184.6 | N29: 58813 | Q29: 2015-01-30 | R29: 132 | S29: 49.35 | T29: 14.05 | V29: 2015/01 | W29: 53.49544073 | X29: 106.9908815 | Y29: 160.4863222 | Z29: 213.9817629 | AC29: 93.95017794 | AD29: 140.9252669 | AE29: 187.9003559 | AF29: 234.8754448 | AG29: 281.8505338
A30: 2016-10-20 | B30: 37846 | C30: 214.2 | D30: 2.488 | E30: HKD | H30: 季報酬率 % | I30: 10.6173 | L30: 2016-08-12 | M30: 187.8 | N30: 57087 | Q30: 2015-02-27 | R30: 135.9 | S30: 50.82 | T30: 14.47 | V30: 2015/02 | W30: 53.48288076 | X30: 106.9657615 | Y30: 160.4486423 | Z30: 213.931523 | AC30: 93.91845197 | AD30: 140.877678 | AE30: 187.8369039 | AF30: 234.7961299 | AG30: 281.7553559
A31: 2016-10-28 | B31: 61290 | C31: 208 | D31: -2.8946 | E31: HKD | H31: 年報酬率 % | I31: 32.5637 | L31: 2016-08-19 | M31: 201.8 | N31: 110113 | Q31: 2015-03-31 | R31: 147.2 | S31: 55.05 | T31: 15.67 | V31: 2015/03 | W31: 53.47865577 | X31: 106.9573115 | Y31: 160.4359673 | Z31: 213.9146231 | AC31: 93.93746011 | AD31: 140.9061902 | AE31: 187.8749202 | AF31: 234.8436503 | AG31: 281.8123803
A32: 2016-11-04 | B32: 75477 | C32: 200 | D32: -3.8462 | E32: HKD | H32: 與大盤比%-日報酬率 | I32: 1.3891 | L32: 2016-08-26 | M32: 200.4 | N32: 53073 | Q32: 2015-04-30 | R32: 160.9 | S32: 60.18 | T32: 17.13 | V32: 2015/04 | W32: 53.47291459 | X32: 106.9458292 | Y32: 160.4187438 | Z32: 213.8916584 | AC32: 93.92877992 | AD32: 140.8931699 | AE32: 187.8575598 | AF32: 234.8219498 | AG32: 281.7863398
H33: 與大盤比%-週報酬率 | I33: -0.198 | L33: 2016-09-02 | M33: 201.8 | N33: 66941 | Q33: 2015-05-29 | R33: 155.7 | S33: 58.23 | T33: 16.58 | V33: 2015/05 | W33: 53.47758887 | X33: 106.9551777 | Y33: 160.4327666 | Z33: 213.9103555 | AC33: 93.90832328 | AD33: 140.8624849 | AE33: 187.8166466 | AF33: 234.7708082 | AG33: 281.7249698
H34: 與大盤比%-月報酬率 | I34: -1.1993 | L34: 2016-09-09 | M34: 213.8 | N34: 91338 | Q34: 2015-06-30 | R34: 154.7 | S34: 48.59 | T34: 14.13 | V34: 2015/06 | W34: 63.67565343 | X34: 127.3513069 | Y34: 191.0269603 | Z34: 254.7026137 | AC34: 109.4833687 | AD34: 164.2250531 | AE34: 218.9667374 | AF34: 273.7084218 | AG34: 328.4501062
H35: 與大盤比%-季報酬率 | I35: 7.4379 | L35: 2016-09-15 | M35: 209.8 | N35: 60544 | Q35: 2015-07-31 | R35: 144.7 | S35: 45.56 | T35: 13.25 | V35: 2015/07 | W35: 63.52063213 | X35: 127.0412643 | Y35: 190.5618964 | Z35: 254.0825285 | AC35: 109.2075472 | AD35: 163.8113208 | AE35: 218.4150943 | AF35: 273.0188679 | AG35: 327.6226415
H36: 與大盤比%-年報酬率 | I36: 32.9467 | L36: 2016-09-23 | M36: 218.2 | N36: 84863 | Q36: 2015-08-31 | R36: 131.8 | S36: 41.5 | T36: 12.07 | V36: 2015/08 | W36: =IF($R36="",NA(),W$1*$R36/$S36) -> 63.51807229 | X36: 127.0361446 | Y36: 190.5542169 | Z36: 254.0722892 | AC36: =IF($R36="",NA(),AC$1*$R36/$T36) -> 109.1963546 | AD36: 163.7945319 | AE36: 218.3927092 | AF36: 272.9908865 | AG36: 327.5890638
L37: 2016-09-30 | M37: 213 | N37: 67474 | Q37: 2015-09-30 | R37: 129.3 | S37: 40.72 | T37: 11.84 | V37: 2015/09 | W37: 63.50687623 | X37: 127.0137525 | Y37: 190.5206287 | Z37: 254.0275049 | AC37: 109.2060811 | AD37: 163.8091216 | AE37: 218.4121622 | AF37: 273.0152027 | AG37: 327.6182432
L38: 2016-10-07 | M38: 216.2 | N38: 43966 | Q38: 2015-10-30 | R38: 146.6 | S38: 46.16 | T38: 13.43 | V38: 2015/10 | W38: 63.51819757 | X38: 127.0363951 | Y38: 190.5545927 | Z38: 254.0727903 | AC38: 109.1586001 | AD38: 163.7379002 | AE38: 218.3172003 | AF38: 272.8965004 | AG38: 327.4758004
L39: 2016-10-14 | M39: 209 | N39: 60282 | Q39: 2015-11-30 | R39: 154.3 | S39: 44.77 | T39: 11.59 | V39: 2015/11 | W39: 68.93008711 | X39: 137.8601742 | Y39: 206.7902613 | Z39: 275.7203484 | AC39: 133.1320104 | AD39: 199.6980155 | AE39: 266.2640207 | AF39: 332.8300259 | AG39: 399.3960311
H40: Data Field | I40: 2016-06-30 | L40: 2016-10-20 | M40: 214.2 | N40: 37846 | Q40: 2015-12-31 | R40: 152.5 | S40: 44.25 | T40: 11.46 | V40: 2015/12 | W40: 68.92655367 | X40: 137.8531073 | Y40: 206.779661 | Z40: 275.7062147 | AC40: 133.0715532 | AD40: 199.6073298 | AE40: 266.1431065 | AF40: 332.6788831 | AG40: 399.2146597
H41: 基本每股盈餘 | I41: 212.8 | L41: 2016-10-28 | M41: 208 | N41: 61290 | Q41: 2016-01-29 | R41: 144.9 | S41: 42.05 | T41: 10.89 | V41: 2016/01 | W41: 68.91795482 | X41: 137.8359096 | Y41: 206.7538644 | Z41: 275.6718193 | AC41: 133.0578512 | AD41: 199.5867769 | AE41: 266.1157025 | AF41: 332.6446281 | AG41: 399.1735537
H42: 每股淨值(A) | I42: 15.01 | L42: 2016-11-04 | M42: 200 | N42: 75477 | Q42: 2016-02-29 | R42: 141.9 | S42: 41.18 | T42: 10.66 | V42: 2016/02 | W42: 68.91694998 | X42: 137.8339 | Y42: 206.7508499 | Z42: 275.6677999 | AC42: 133.1144465 | AD42: 199.6716698 | AE42: 266.2288931 | AF42: 332.7861163 | AG42: 399.3433396
H43: 幣別 | I43: RMB | Q43: 2016-03-31 | R43: 158.4 | S43: 45.98 | T43: 11.91 | V43: 2016/03 | W43: 68.89952153 | X43: 137.7990431 | Y43: 206.6985646 | Z43: 275.5980861 | AC43: 132.9974811 | AD43: 199.4962217 | AE43: 265.9949622 | AF43: 332.4937028 | AG43: 398.9924433
Q44: 2016-04-29 | R44: 158.9 | S44: 46.12 | T44: 11.94 | V44: 2016/04 | W44: 68.90719861 | X44: 137.8143972 | Y44: 206.7215958 | Z44: 275.6287944 | AC44: 133.0820771 | AD44: 199.6231156 | AE44: 266.1641541 | AF44: 332.7051926 | AG44: 399.2462312
Q45: 2016-05-31 | R45: 173.3 | S45: 50.31 | T45: 13.03 | V45: 2016/05 | W45: 68.89286424 | X45: 137.7857285 | Y45: 206.6785927 | Z45: 275.571457 | AC45: 133.0007675 | AD45: 199.5011512 | AE45: 266.0015349 | AF45: 332.5019186 | AG45: 399.0023024
Q46: 2016-06-30 | R46: 176.1 | S46: 47.69 | T46: 11.37 | V46: 2016/06 | W46: 73.85196058 | X46: 147.7039212 | Y46: 221.5558817 | Z46: 295.4078423 | AC46: 154.8812665 | AD46: 232.3218997 | AE46: 309.762533 | AF46: 387.2031662 | AG46: 464.6437995
Q47: 2016-07-29 | R47: 186.5 | S47: 50.81 | T47: 12.11 | V47: 2016/07 | W47: 73.41074592 | X47: 146.8214918 | Y47: 220.2322377 | Z47: 293.6429837 | AC47: 154.0049546 | AD47: 231.0074319 | AE47: 308.0099092 | AF47: 385.0123865 | AG47: 462.0148637
Q48: 2016-08-31 | R48: 201.8 | S48: 54.98 | T48: 13.11 | V48: 2016/08 | W48: 73.40851219 | X48: 146.8170244 | Y48: 220.2255366 | Z48: 293.6340487 | AC48: 153.928299 | AD48: 230.8924485 | AE48: 307.856598 | AF48: 384.8207475 | AG48: 461.784897
Q49: 2016-09-30 | R49: 213 | S49: 58.04 | T49: 13.84 | V49: 2016/09 | W49: 73.39765679 | X49: 146.7953136 | Y49: 220.1929704 | Z49: 293.5906272 | AC49: 153.9017341 | AD49: 230.8526012 | AE49: 307.8034682 | AF49: 384.7543353 | AG49: 461.7052023
Q50: 2016-10-31 | R50: 205.8 | S50: 56.07 | T50: 13.37 | V50: 2016/10 | W50: 73.4082397 | X50: 146.8164794 | Y50: 220.2247191 | Z50: 293.6329588 | AC50: 153.9267016 | AD50: 230.8900524 | AE50: 307.8534031 | AF50: 384.8167539 | AG50: 461.7801047
Q51: 2016-11-07 | R51: 204.2 | S51: 47.37 | T51: 11.48 | V51: 2016/11 | W51: 86.21490395 | X51: 172.4298079 | Y51: 258.6447118 | Z51: 344.8596158 | AC51: 177.8745645 | AD51: 266.8118467 | AE51: 355.7491289 | AF51: 444.6864111 | AG51: 533.6236934

Sheet Margin Trading
A1: 00700 騰訊控股
A2: 年月日 | B2: 收盤價(元) | C2: 融券股數 | D2: 融券金額 | E2: 佔成交股數比重 | F2: 佔成交金額比重 | G2: 融券市值 | H2: 交易幣別 | J2: 融券金額(佰萬)
A3: 2016-11-07 | B3: 204.2 | C3: 1605900 | D3: 328888480 | E3: 9.984 | F3: 10.013 | G3: 327924780 | H3: HKD | J3: =D3/1000 -> 328888.48
A4: 2016-11-04 | B4: 200 | C4: 1367400 | D4: 274082210 | E4: 8.033 | F4: 8.038 | G4: 273480000 | H4: HKD | J4: =D4/1000 -> 274082.21
A5: 2016-11-03 | B5: 202 | C5: 1724700 | D5: 348924900 | E5: 9.876 | F5: 9.882 | G5: 348389400 | H5: HKD | J5: 348924.9
A6: 2016-11-02 | B6: 204.4 | C6: 1685800 | D6: 344891200 | E6: 12.154 | F6: 12.129 | G6: 344577520 | H6: HKD | J6: 344891.2
A7: 2016-11-01 | B7: 207.2 | C7: 889000 | D7: 185278200 | E7: 5.916 | F7: 5.921 | G7: 184200800 | H7: HKD | J7: 185278.2
A8: 2016-10-31 | B8: 205.8 | C8: 541100 | D8: 111981680 | E8: 4.474 | F8: 4.468 | G8: 111358380 | H8: HKD | J8: 111981.68
A9: 2016-10-28 | B9: 208 | C9: 1748200 | D9: 364084760 | E9: 9.776 | F9: 9.775 | G9: 363625600 | H9: HKD | J9: 364084.76
A10: 2016-10-27 | B10: 210.6 | C10: 895200 | D10: 189063640 | E10: 8.377 | F10: 8.381 | G10: 188529120 | H10: HKD | J10: 189063.64
A11: 2016-10-26 | B11: 212.2 | C11: 285600 | D11: 61060240 | E11: 3.255 | F11: 3.256 | G11: 60604320 | H11: HKD | J11: 61060.24
A12: 2016-10-25 | B12: 214.8 | C12: 922300 | D12: 198755260 | E12: 11.013 | F12: 11.015 | G12: 198110040 | H12: HKD | J12: 198755.26
A13: 2016-10-24 | B13: 215.4 | C13: 2685400 | D13: 575474600 | E13: 17.245 | F13: 17.27 | G13: 578435160 | H13: HKD | J13: 575474.6
A14: 2016-10-20 | B14: 214.2 | C14: 730100 | D14: 156785280 | E14: 8.87 | F14: 8.88 | G14: 156387420 | H14: HKD | J14: 156785.28
A15: 2016-10-19 | B15: 212.8 | C15: 498600 | D15: 106156680 | E15: 6.576 | F15: 6.58 | G15: 106102080 | H15: HKD | J15: 106156.68
A16: 2016-10-18 | B16: 212.4 | C16: 1648400 | D16: 349798880 | E16: 13.442 | F16: 13.474 | G16: 350120160 | H16: HKD | J16: 349798.88
A17: 2016-10-17 | B17: 208.8 | C17: 902200 | D17: 188337820 | E17: 9.234 | F17: 9.227 | G17: 188379360 | H17: HKD | J17: 188337.82
A18: 2016-10-14 | B18: 209 | C18: 2419000 | D18: 507604300 | E18: 17.247 | F18: 17.271 | G18: 505571000 | H18: HKD | J18: 507604.3
A19: 2016-10-13 | B19: 210 | C19: 780300 | D19: 164253420 | E19: 4.621 | F19: 4.618 | G19: 163863000 | H19: HKD | J19: 164253.42
A20: 2016-10-12 | B20: 213.4 | C20: 1051500 | D20: 223454320 | E20: 6.31 | F20: 6.313 | G20: 224390100 | H20: HKD | J20: 223454.32
A21: 2016-10-11 | B21: 215.8 | C21: 832600 | D21: 180082640 | E21: 6.553 | F21: 6.555 | G21: 179675080 | H21: HKD | J21: 180082.64
A22: 2016-10-07 | B22: 216.2 | C22: 1295700 | D22: 280266900 | E22: 14.566 | F22: 14.562 | G22: 280130340 | H22: HKD | J22: 280266.9
A23: 2016-10-06 | B23: 217.4 | C23: 1810500 | D23: 393267440 | E23: 16.978 | F23: 16.978 | G23: 393602700 | H23: HKD | J23: 393267.44
A24: 2016-10-05 | B24: 217.4 | C24: 233900 | D24: 50677020 | E24: 3.514 | F24: 3.513 | G24: 50849860 | H24: HKD | J24: 50677.02

Sheet News
A1: 00700 騰訊控股
A2: 年月日 | B2: 則次 | C2: 序號 | D2: 新聞內容
A3: 2016-10-16 | B3: 1 | C3: 0 | D3: ＊公告（香港聯交所）
A4: 2016-10-16 | B4: 1 | C4: 10 | D4: 於2016年10月10日起至2016年10月12日期間，財團（本公司的間接全資附屬公司）與共同投資者訂立認購協議，據此，共同投資者承諾認購新財團股份，總對價為850,000,000美元，以現金支付。於2016年10月16日，已落實共同投資者當中 新財團股份的分配，並決定由於進行認購事項，本公司於財團的間接投票股權將為50%，而共同投資者將共同持有財團的50%投票股權。因此，財團將不再為本公司的附屬公司。誠如6月21日公告所指出，認購事項是為了成立財團以進行 Supercell收購事項之目的而作出，認購事項的所得款項將用作撥付Supercell收購事項的部分資金。本公司預期財團將於2016年10月27日或前後透過買方完成S upercell收購事項。於Supercell收購事項完成後，財團將於Supercell證券中間接持有76.9%的權益。根據上市規則第14.29條，認購事項及分配新財團股份合計被視作出售本公司於財團的間接權益。有關認購事項合計的最高適用百分比率（定義見上市規則第14.07條）超逾5%但低於25%。因此，認購事項構成本公司的一項須予披露交易，並須遵守上市規則第14章的通知及公告要求。

Sheet Shares Structure
A1: 00700
B2: Data Field | C2: 2013-12-31
A3: =MID(B3,4,99) -> 國家股％ | B3: S1 國家股％
A4: =MID(B4,4,99) -> 國有法人股％ | B4: S2 國有法人股％
A5: 其他內資股％ | B5: S3 其他內資股％
A6: 外資境內持股％ | B6: S4 外資境內持股％
A7: 內部職工股％ | B7: S5 內部職工股％
A8: 優先股或其它％ | B8: S6 優先股或其它％
A9: 其它未流通股％ | B9: S7 其它未流通股％
A10: 有限售Ｈ股％ | B10: S8 有限售Ｈ股％
A11: 未上市流通股份總計％ | B11: S0 未上市流通股份總計％ | F11: =A11 -> 未上市流通股份總計％ | G11: =IF(C11=0,NA(),C11) -> 
A12: 人民幣普通股－Ａ股％ | B12: O1 人民幣普通股－Ａ股％ | F12: 人民幣普通股－Ａ股％
A13: 境內上市外資股% | B13: O2 境內上市外資股% | F13: 境內上市外資股%
A14: 境外上市外資股－Ｈ% | B14: O3 境外上市外資股－Ｈ% | F14: 境外上市外資股－Ｈ%
A15: 已流通優先股％ | B15: O4 已流通優先股％ | F15: 已流通優先股％
A16: 其它流通股％ | B16: O5 其它流通股％ | F16: 其它流通股％
A17: 已上市流通股份總計％ | B17: O0 已上市流通股份總計％

Sheet PL_Q
A1: 00700 騰訊控股 | B1: =IF(C4>0,C1-1,IF(B4>0,6,"")) -> -11 | C1: -10 | D1: -9 | E1: -8 | F1: -7 | G1: -6 | H1: =IF(I4>0,I1-1,IF(H4>0,6,"")) -> -5 | I1: -4 | J1: -3 | K1: -2 | L1: -1 | M1: 0 | N1: 1 | O1: 2 | P1: 3 | Q1: 4 | R1: 5 | S1: 6 | X1: =HLOOKUP(X$4,$A$4:$U$46,43,TRUE) -> -11 | Y1: -10 | Z1: -9 | AA1: -8 | AB1: -7 | AC1: -6 | AD1: -5 | AE1: -4 | AF1: -3 | AG1: -2 | AH1: -1 | AI1: 0 | AJ1: 1 | AK1: 2 | AL1: 3 | AM1: 4 | AN1: 5 | AO1: 6 | AS1: 1 | AT1: 2 | AU1: 3 | AV1: 4 | AW1: 5 | AX1: 6
X2: =IF(X4="","",YEAR(X4)) -> 2012 | Y2: =IF(Y4="","",YEAR(Y4)) -> 2012 | Z2: 2012 | AA2: 2012 | AB2: 2013 | AC2: 2013 | AD2: 2013 | AE2: =IF(AE4="","",YEAR(AE4)) -> 2013 | AF2: =IF(AF4="","",YEAR(AF4)) -> 2014 | AG2: =IF(AG4="","",YEAR(AG4)) -> 2014 | AH2: 2014 | AI2: 2014 | AJ2: 2015 | AK2: 2015 | AL2: 2015 | AM2: 2015 | AN2: 2016 | AO2: 2016
A3: 季度 | W3: 季度 | X3: =YEAR(X4)&"Q"&MONTH(X4)/3 -> 2012Q1 | Y3: 2012Q2 | Z3: 2012Q3 | AA3: 2012Q4 | AB3: 2013Q1 | AC3: 2013Q2 | AD3: 2013Q3 | AE3: 2013Q4 | AF3: 2014Q1 | AG3: =YEAR(AG4)&"Q"&MONTH(AG4)/3 -> 2014Q2 | AH3: =YEAR(AH4)&"Q"&MONTH(AH4)/3 -> 2014Q3 | AI3: 2014Q4 | AJ3: 2015Q1 | AK3: 2015Q2 | AL3: 2015Q3 | AM3: 2015Q4 | AN3: 2016Q1 | AO3: 2016Q2 | AR3: 季度 | AS3: =INDEX(PL_R,MATCH($AR3,$W:$W,0),MATCH(AS$1,$W$1:$AP$1,0),TRUE) -> 2015Q1 | AT3: 2015Q2 | AU3: 2015Q3 | AV3: 2015Q4 | AW3: 2016Q1 | AX3: 2016Q2
A4: Data Field | B4: 2012-03-30 | C4: 2012-06-29 | D4: 2012-09-28 | E4: 2012-12-31 | F4: 2013-03-28 | G4: 2013-06-28 | H4: 2013-09-30 | I4: 2013-12-31 | J4: 2014-03-31 | K4: 2014-06-30 | L4: 2014-09-30 | M4: 2014-12-31 | N4: 2015-03-31 | O4: 2015-06-30 | P4: 2015-09-30 | Q4: 2015-12-31 | R4: 2016-03-31 | S4: 2016-06-30 | W4: Data Field | X4: =IF(B4="","",B4) -> 2012-03-30 | Y4: =IF(C4="","",C4) -> 2012-06-29 | Z4: 2012-09-28 | AA4: 2012-12-31 | AB4: 2013-03-28 | AC4: 2013-06-28 | AD4: 2013-09-30 | AE4: =IF(I4="","",I4) -> 2013-12-31 | AF4: 2014-03-31 | AG4: 2014-06-30 | AH4: 2014-09-30 | AI4: 2014-12-31 | AJ4: 2015-03-31 | AK4: 2015-06-30 | AL4: 2015-09-30 | AM4: 2015-12-31 | AN4: 2016-03-31 | AO4: 2016-06-30 | AR4: Data Field | AS4: 2015-03-31 | AT4: 2015-06-30 | AU4: 2015-09-30 | AV4: 2015-12-31 | AW4: 2016-03-31 | AX4: 2016-06-30
A5: 幣別 | B5: RMB | C5: RMB | D5: RMB | E5: RMB | F5: RMB | G5: RMB | H5: RMB | I5: RMB | J5: RMB | K5: RMB | L5: RMB | M5: RMB | N5: RMB | O5: RMB | P5: RMB | Q5: RMB | R5: RMB | S5: RMB | W5: 幣別 | X5: =IF(B5="","",B5) -> RMB | Y5: =IF(C5="","",C5) -> RMB | Z5: RMB | AA5: RMB | AB5: RMB | AC5: RMB | AD5: RMB | AE5: RMB | AF5: RMB | AG5: RMB | AH5: RMB | AI5: RMB | AJ5: RMB | AK5: RMB | AL5: RMB | AM5: RMB | AN5: RMB | AO5: RMB | AR5: 幣別 | AS5: RMB | AT5: RMB | AU5: RMB | AV5: RMB | AW5: RMB | AX5: RMB
A6: 會計開始月份 | B6: 2012/01 | C6: 2012/01 | D6: 2012/01 | E6: 2012/01 | F6: 2013/01 | G6: 2013/01 | H6: 2013/01 | I6: 2013/01 | J6: 2014/01 | K6: 2014/01 | L6: 2014/01 | M6: 2014/01 | N6: 2015/01 | O6: 2015/01 | P6: 2015/01 | Q6: 2015/01 | R6: 2016/01 | S6: 2016/01 | W6: 會計開始月份 | X6: =IF(B6="","",B6) -> 2012/01 | Y6: 2012/01 | Z6: 2012/01 | AA6: 2012/01 | AB6: 2013/01 | AC6: 2013/01 | AD6: 2013/01 | AE6: 2013/01 | AF6: 2014/01 | AG6: 2014/01 | AH6: 2014/01 | AI6: 2014/01 | AJ6: 2015/01 | AK6: 2015/01 | AL6: 2015/01 | AM6: 2015/01 | AN6: 2016/01 | AO6: 2016/01 | AR6: 會計開始月份 | AS6: 2015/01 | AT6: 2015/01 | AU6: 2015/01 | AV6: 2015/01 | AW6: 2016/01 | AX6: 2016/01
A7: 會計結束月份 | B7: 2012/03 | C7: 2012/06 | D7: 2012/09 | E7: 2012/12 | F7: 2013/03 | G7: 2013/06 | H7: 2013/09 | I7: 2013/12 | J7: 2014/03 | K7: 2014/06 | L7: 2014/09 | M7: 2014/12 | N7: 2015/03 | O7: 2015/06 | P7: 2015/09 | Q7: 2015/12 | R7: 2016/03 | S7: 2016/06 | W7: 會計結束月份 | X7: =IF(B7="","",B7) -> 2012/03 | Y7: 2012/06 | Z7: 2012/09 | AA7: 2012/12 | AB7: 2013/03 | AC7: 2013/06 | AD7: 2013/09 | AE7: 2013/12 | AF7: 2014/03 | AG7: 2014/06 | AH7: 2014/09 | AI7: 2014/12 | AJ7: 2015/03 | AK7: 2015/06 | AL7: 2015/09 | AM7: 2015/12 | AN7: 2016/03 | AO7: 2016/06 | AR7: 會計結束月份 | AS7: 2015/03 | AT7: 2015/06 | AU7: 2015/09 | AV7: 2015/12 | AW7: 2016/03 | AX7: 2016/06
A8: 合併(Y/N) | B8: Y | C8: Y | D8: Y | E8: Y | F8: Y | G8: Y | H8: Y | I8: Y | J8: Y | K8: Y | L8: Y | M8: Y | N8: Y | O8: Y | P8: Y | Q8: Y | R8: Y | S8: Y | W8: 合併(Y/N) | X8: =IF(B8="","",B8) -> Y | Y8: Y | Z8: Y | AA8: Y | AB8: Y | AC8: Y | AD8: Y | AE8: Y | AF8: Y | AG8: Y | AH8: Y | AI8: Y | AJ8: Y | AK8: Y | AL8: Y | AM8: Y | AN8: Y | AO8: Y | AR8: 合併(Y/N) | AS8: Y | AT8: Y | AU8: Y | AV8: Y | AW8: Y | AX8: Y
A9: 營業額 | B9: 9647858 | C9: 20175102 | D9: 31740658 | E9: 43893711 | F9: 13547554 | G9: 27932075 | H9: 43467187 | I9: 60437000 | J9: 18400000 | K9: 38146000 | L9: 57954000 | M9: 78932000 | N9: 22399000 | O9: 45828000 | P9: 72422000 | Q9: 102863000 | R9: 31995000 | S9: 67686000 | W9: 營業額 | X9: =IF(X4="","",IF(X$2=N$2,B9-A9,B9)) -> 9647858 | Y9: =IF(Y4="","",IF(Y$2=X$2,C9-B9,C9)) -> 10527244 | Z9: 11565556 | AA9: 12153053 | AB9: 13547554 | AC9: 14384521 | AD9: 15535112 | AE9: 16969813 | AF9: 18400000 | AG9: 19746000 | AH9: =IF(AH4="","",IF(AH$2=AG$2,L9-K9,L9)) -> 19808000 | AI9: 20978000 | AJ9: 22399000 | AK9: 23429000 | AL9: 26594000 | AM9: 30441000 | AN9: 31995000 | AO9: 35691000 | AR9: 營業額 | AS9: 22399000 | AT9: 23429000 | AU9: 26594000 | AV9: 30441000 | AW9: 31995000 | AX9: 35691000
A10: 銷售成本 | B10: 3836317 | C10: 8147696 | D10: 12934789 | E10: 18207360 | F10: 5953761 | G10: 12544046 | H10: 19580332 | I10: 27778000 | J10: 7800000 | K10: 15374000 | L10: 22541000 | M10: 30873000 | N10: 8965000 | O10: 17956000 | P10: 28970000 | Q10: 41631000 | R10: 13406000 | S10: 28641000 | W10: 銷售成本 | X10: =IF(X5="","",IF(X$2=N$2,B10-A10,B10)) -> 3836317 | Y10: =IF(Y5="","",IF(Y$2=X$2,C10-B10,C10)) -> 4311379 | Z10: =IF(Z5="","",IF(Z$2=Y$2,D10-C10,D10)) -> 4787093 | AA10: =IF(AA5="","",IF(AA$2=Z$2,E10-D10,E10)) -> 5272571 | AB10: =IF(AB5="","",IF(AB$2=AA$2,F10-E10,F10)) -> 5953761 | AC10: =IF(AC5="","",IF(AC$2=AB$2,G10-F10,G10)) -> 6590285 | AD10: =IF(AD5="","",IF(AD$2=AC$2,H10-G10,H10)) -> 7036286 | AE10: =IF(AE5="","",IF(AE$2=AD$2,I10-H10,I10)) -> 8197668 | AF10: =IF(AF5="","",IF(AF$2=AE$2,J10-I10,J10)) -> 7800000 | AG10: =IF(AG5="","",IF(AG$2=AF$2,K10-J10,K10)) -> 7574000 | AH10: =IF(AH5="","",IF(AH$2=AG$2,L10-K10,L10)) -> 7167000 | AI10: 8332000 | AJ10: 8965000 | AK10: 8991000 | AL10: 11014000 | AM10: 12661000 | AN10: 13406000 | AO10: 15235000 | AR10: 銷售成本 | AS10: 8965000 | AT10: 8991000 | AU10: 11014000 | AV10: 12661000 | AW10: 13406000 | AX10: 15235000
A11: 其他營業成本-稅金 | B11: 0 | C11: 0 | D11: 0 | E11: 0 | F11: 0 | G11: 0 | H11: 0 | I11: 0 | J11: 0 | K11: 0 | L11: 0 | M11: 0 | N11: 0 | O11: 0 | P11: 0 | Q11: 0 | R11: 0 | S11: 0 | W11: 其他營業成本-稅金 | X11: 0 | Y11: 0 | Z11: 0 | AA11: 0 | AB11: 0 | AC11: =IF(AC6="","",IF(AC$2=AB$2,G11-F11,G11)) -> 0 | AD11: =IF(AD6="","",IF(AD$2=AC$2,H11-G11,H11)) -> 0 | AE11: =IF(AE6="","",IF(AE$2=AD$2,I11-H11,I11)) -> 0 | AF11: =IF(AF6="","",IF(AF$2=AE$2,J11-I11,J11)) -> 0 | AG11: =IF(AG6="","",IF(AG$2=AF$2,K11-J11,K11)) -> 0 | AH11: 0 | AI11: 0 | AJ11: 0 | AK11: 0 | AL11: 0 | AM11: 0 | AN11: 0 | AO11: 0 | AR11: 其他營業成本-稅金 | AS11: 0 | AT11: 0 | AU11: 0 | AV11: 0 | AW11: 0 | AX11: 0
A12: 營業毛利 (TEJ) | B12: 5811541 | C12: 12027406 | D12: 18805869 | E12: 25686351 | F12: 7593793 | G12: 15388029 | H12: 23886855 | I12: 32659000 | J12: 10600000 | K12: 22772000 | L12: 35413000 | M12: 48059000 | N12: 13434000 | O12: 27872000 | P12: 43452000 | Q12: 61232000 | R12: 18589000 | S12: 39045000 | W12: 營業毛利 (TEJ) | X12: 5811541 | Y12: 6215865 | Z12: 6778463 | AA12: 6880482 | AB12: 7593793 | AC12: 7794236 | AD12: 8498826 | AE12: 8772145 | AF12: 10600000 | AG12: 12172000 | AH12: 12641000 | AI12: 12646000 | AJ12: 13434000 | AK12: 14438000 | AL12: 15580000 | AM12: 17780000 | AN12: 18589000 | AO12: 20456000 | AR12: 營業毛利 (TEJ) | AS12: 13434000 | AT12: 14438000 | AU12: 15580000 | AV12: 17780000 | AW12: 18589000 | AX12: 20456000
A13: 其他收入及收益 | B13: 197854 | C13: 419043 | D13: 1140464 | E13: 1476339 | F13: 754959 | G13: 1153162 | H13: 1582472 | I13: 2458000 | J13: 1982000 | K13: 4701000 | L13: 3649000 | M13: 4435000 | N13: 932000 | O13: 2142000 | P13: 3315000 | Q13: 4213000 | R13: 1209000 | S13: 2746000 | W13: 其他收入及收益 | X13: 197854 | Y13: 221189 | Z13: 721421 | AA13: 335875 | AB13: 754959 | AC13: 398203 | AD13: 429310 | AE13: 875528 | AF13: 1982000 | AG13: 2719000 | AH13: -1052000 | AI13: 786000 | AJ13: 932000 | AK13: 1210000 | AL13: 1173000 | AM13: 898000 | AN13: 1209000 | AO13: 1537000 | AR13: 其他收入及收益 | AS13: =INDEX(PL_R,MATCH($AR13,$W:$W,0),MATCH(AS$1,$W$1:$AP$1,0),TRUE) -> 932000 | AT13: 1210000 | AU13: 1173000 | AV13: 898000 | AW13: 1209000 | AX13: 1537000
A14: 營業費用─推銷費用 | B14: 469200 | C14: 1078872 | D14: 1898662 | E14: 2993437 | F14: 962398 | G14: 2196515 | H14: 3662451 | I14: 5695000 | J14: 1855000 | K14: 3828000 | L14: 5734000 | M14: 7797000 | N14: 1326000 | O14: 2927000 | P14: 4969000 | Q14: 7993000 | R14: 2032000 | S14: 4397000 | W14: 營業費用─推銷費用 | X14: 469200 | Y14: 609672 | Z14: 819790 | AA14: 1094775 | AB14: 962398 | AC14: 1234117 | AD14: 1465936 | AE14: 2032549 | AF14: 1855000 | AG14: 1973000 | AH14: 1906000 | AI14: 2063000 | AJ14: 1326000 | AK14: 1601000 | AL14: 2042000 | AM14: 3024000 | AN14: 2032000 | AO14: 2365000 | AR14: 營業費用─推銷費用 | AS14: 1326000 | AT14: 1601000 | AU14: 2042000 | AV14: 3024000 | AW14: 2032000 | AX14: 2365000
A15: 營業費用─管理費用 | B15: 1754074 | C15: 3616239 | D15: 5641537 | E15: 7765272 | F15: 2196111 | G15: 4597054 | H15: 7218134 | I15: 9988000 | J15: 2937000 | K15: 6390000 | L15: 10180000 | M15: 14155000 | N15: 3668000 | O15: 7679000 | P15: 12059000 | Q15: 16825000 | R15: 4368000 | S15: 9667000 | W15: 營業費用─管理費用 | X15: 1754074 | Y15: 1862165 | Z15: 2025298 | AA15: 2123735 | AB15: 2196111 | AC15: 2400943 | AD15: 2621080 | AE15: 2769866 | AF15: 2937000 | AG15: 3453000 | AH15: 3790000 | AI15: 3975000 | AJ15: 3668000 | AK15: 4011000 | AL15: 4380000 | AM15: 4766000 | AN15: 4368000 | AO15: 5299000 | AR15: 營業費用─管理費用 | AS15: 3668000 | AT15: 4011000 | AU15: 4380000 | AV15: 4766000 | AW15: 4368000 | AX15: 5299000
A16: 營業費用─研究及開發開支 | B16: 0 | C16: 0 | D16: 0 | E16: 0 | F16: 0 | G16: 0 | H16: 0 | I16: 0 | J16: 0 | K16: 0 | L16: 0 | M16: 0 | N16: 0 | O16: 0 | P16: 0 | Q16: 0 | R16: 0 | S16: 0 | W16: 營業費用─研究及開發開支 | X16: 0 | Y16: 0 | Z16: 0 | AA16: 0 | AB16: 0 | AC16: 0 | AD16: 0 | AE16: 0 | AF16: 0 | AG16: 0 | AH16: 0 | AI16: 0 | AJ16: 0 | AK16: 0 | AL16: 0 | AM16: 0 | AN16: 0 | AO16: 0 | AR16: 營業費用─研究及開發開支 | AS16: 0 | AT16: 0 | AU16: 0 | AV16: 0 | AW16: 0 | AX16: 0
A17: 其他經營支出 | B17: 94763 | C17: 122365 | D17: 652796 | E17: 924568 | F17: 127725 | G17: 120000 | H17: 145337 | I17: 240000 | J17: 0 | K17: 1622000 | L17: 0 | M17: 0 | N17: 0 | O17: 0 | P17: 0 | Q17: 0 | R17: 0 | S17: 0 | W17: 其他經營支出 | X17: 94763 | Y17: 27602 | Z17: 530431 | AA17: 271772 | AB17: 127725 | AC17: -7725 | AD17: 25337 | AE17: 94663 | AF17: 0 | AG17: 1622000 | AH17: -1622000 | AI17: 0 | AJ17: 0 | AK17: 0 | AL17: 0 | AM17: 0 | AN17: 0 | AO17: 0 | AR17: 其他經營支出 | AS17: 0 | AT17: 0 | AU17: 0 | AV17: 0 | AW17: 0 | AX17: 0
A18: 重組成本 | B18: 0 | C18: 0 | D18: 0 | E18: 0 | F18: 0 | G18: 0 | H18: 0 | I18: 0 | J18: 0 | K18: 0 | L18: 0 | M18: 0 | N18: 0 | O18: 0 | P18: 0 | Q18: 0 | R18: 0 | S18: 0 | W18: 重組成本 | X18: 0 | Y18: 0 | Z18: 0 | AA18: 0 | AB18: 0 | AC18: 0 | AD18: 0 | AE18: 0 | AF18: 0 | AG18: 0 | AH18: 0 | AI18: 0 | AJ18: 0 | AK18: 0 | AL18: 0 | AM18: 0 | AN18: 0 | AO18: 0 | AR18: 重組成本 | AS18: 0 | AT18: 0 | AU18: 0 | AV18: 0 | AW18: 0 | AX18: 0
A19: 營業溢利 (TEJ) | B19: 3691358 | C19: 7628973 | D19: 11753338 | E19: 15479413 | F19: 5062518 | G19: 9627622 | H19: 14443405 | I19: 19194000 | J19: 7790000 | K19: 15633000 | L19: 23148000 | M19: 30542000 | N19: 9372000 | O19: 19408000 | P19: 29739000 | Q19: 40627000 | R19: 13398000 | S19: 27727000 | W19: 營業溢利 (TEJ) | X19: 3691358 | Y19: 3937615 | Z19: 4124365 | AA19: 3726075 | AB19: 5062518 | AC19: 4565104 | AD19: 4815783 | AE19: 4750595 | AF19: 7790000 | AG19: 7843000 | AH19: 7515000 | AI19: 7394000 | AJ19: 9372000 | AK19: 10036000 | AL19: 10331000 | AM19: 10888000 | AN19: 13398000 | AO19: 14329000 | AR19: 營業溢利 (TEJ) | AS19: 9372000 | AT19: 10036000 | AU19: 10331000 | AV19: 10888000 | AW19: 13398000 | AX19: 14329000
A20: 財務收入 | B20: 0 | C20: 0 | D20: 0 | E20: 0 | F20: 0 | G20: 0 | H20: 0 | I20: 0 | J20: 0 | K20: 0 | L20: 0 | M20: 0 | N20: 0 | O20: 0 | P20: 0 | Q20: 0 | R20: 0 | S20: 0 | W20: 財務收入 | X20: 0 | Y20: 0 | Z20: 0 | AA20: 0 | AB20: 0 | AC20: 0 | AD20: 0 | AE20: 0 | AF20: 0 | AG20: 0 | AH20: 0 | AI20: 0 | AJ20: 0 | AK20: 0 | AL20: 0 | AM20: 0 | AN20: 0 | AO20: 0 | AR20: 財務收入 | AS20: 0 | AT20: 0 | AU20: 0 | AV20: 0 | AW20: 0 | AX20: 0
A21: 財政 /融資支出 | B21: 69982 | C21: 185238 | D21: 284716 | E21: 347518 | F21: 82198 | G21: 67865 | H21: 90348 | I21: 84000 | J21: 238000 | K21: 592000 | L21: 909000 | M21: 1182000 | N21: 433000 | O21: 774000 | P21: 1255000 | Q21: 1618000 | R21: 491000 | S21: 868000 | W21: 財政 /融資支出 | X21: 69982 | Y21: 115256 | Z21: 99478 | AA21: 62802 | AB21: 82198 | AC21: -14333 | AD21: 22483 | AE21: -6348 | AF21: 238000 | AG21: 354000 | AH21: 317000 | AI21: 273000 | AJ21: 433000 | AK21: 341000 | AL21: 481000 | AM21: 363000 | AN21: 491000 | AO21: 377000 | AR21: 財政 /融資支出 | AS21: 433000 | AT21: 341000 | AU21: 481000 | AV21: 363000 | AW21: 491000 | AX21: 377000
A22: 應佔聯營公司溢利之損益 | B22: -9753 | C22: -4342 | D22: -25530 | E22: -54386 | F22: 131381 | G22: 177451 | H22: 227265 | I22: 213000 | J22: 45000 | K22: 68000 | L22: -72000 | M22: -347000 | N22: -310000 | O22: -762000 | P22: -1464000 | Q22: -2793000 | R22: -1089000 | S22: -1381000 | W22: 應佔聯營公司溢利之損益 | X22: -9753 | Y22: 5411 | Z22: -21188 | AA22: -28856 | AB22: 131381 | AC22: 46070 | AD22: 49814 | AE22: -14265 | AF22: 45000 | AG22: 23000 | AH22: -140000 | AI22: -275000 | AJ22: -310000 | AK22: -452000 | AL22: -702000 | AM22: -1329000 | AN22: -1089000 | AO22: -292000 | AR22: 應佔聯營公司溢利之損益 | AS22: -310000 | AT22: -452000 | AU22: -702000 | AV22: -1329000 | AW22: -1089000 | AX22: -292000
A23: 應佔共同控制公司溢利之損益 | B23: 1380 | C23: -7995 | D23: -14084 | E23: -26494 | F23: -11572 | G23: -26667 | H23: -38786 | I23: -42000 | J23: -1000 | K23: -1000 | L23: 0 | M23: 0 | N23: 0 | O23: 0 | P23: 0 | Q23: 0 | R23: 0 | S23: 0 | W23: 應佔共同控制公司溢利之損益 | X23: 1380 | Y23: -9375 | Z23: -6089 | AA23: -12410 | AB23: -11572 | AC23: -15095 | AD23: -12119 | AE23: -3214 | AF23: -1000 | AG23: 0 | AH23: 1000 | AI23: 0 | AJ23: 0 | AK23: 0 | AL23: 0 | AM23: 0 | AN23: 0 | AO23: 0 | AR23: 應佔共同控制公司溢利之損益 | AS23: =INDEX(PL_R,MATCH($AR23,$W:$W,0),MATCH(AS$1,$W$1:$AP$1,0),TRUE) -> 0 | AT23: 0 | AU23: 0 | AV23: 0 | AW23: 0 | AX23: 0
A24: 營業溢利後其他收入合計 | B24: 0 | C24: 0 | D24: 0 | E24: 0 | F24: 0 | G24: 0 | H24: 0 | I24: 0 | J24: 0 | K24: 0 | L24: 0 | M24: 0 | N24: 0 | O24: 0 | P24: 0 | Q24: 0 | R24: 0 | S24: 0 | W24: 營業溢利後其他收入合計 | X24: 0 | Y24: 0 | Z24: 0 | AA24: 0 | AB24: 0 | AC24: 0 | AD24: 0 | AE24: 0 | AF24: 0 | AG24: 0 | AH24: 0 | AI24: 0 | AJ24: 0 | AK24: 0 | AL24: 0 | AM24: 0 | AN24: 0 | AO24: 0 | AR24: 營業溢利後其他收入合計 | AS24: 0 | AT24: 0 | AU24: 0 | AV24: 0 | AW24: 0 | AX24: 0
A25: 營業溢利後其他支出合計 | B25: 0 | C25: 0 | D25: 0 | E25: 0 | F25: 0 | G25: 0 | H25: 0 | I25: 0 | J25: 0 | K25: 0 | L25: 0 | M25: 0 | N25: 0 | O25: 0 | P25: 0 | Q25: 0 | R25: 0 | S25: 0 | W25: 營業溢利後其他支出合計 | X25: 0 | Y25: 0 | Z25: 0 | AA25: 0 | AB25: 0 | AC25: 0 | AD25: 0 | AE25: =IF(AE20="","",IF(AE$2=AD$2,I25-H25,I25)) -> 0 | AF25: =IF(AF20="","",IF(AF$2=AE$2,J25-I25,J25)) -> 0 | AG25: =IF(AG20="","",IF(AG$2=AF$2,K25-J25,K25)) -> 0 | AH25: 0 | AI25: 0 | AJ25: 0 | AK25: 0 | AL25: 0 | AM25: 0 | AN25: 0 | AO25: 0 | AR25: 營業溢利後其他支出合計 | AS25: 0 | AT25: 0 | AU25: 0 | AV25: 0 | AW25: 0 | AX25: 0
A26: 除稅前利潤 | B26: 3613003 | C26: 7431398 | D26: 11429008 | E26: 15051015 | F26: 5100129 | G26: 9710541 | H26: 14541536 | I26: 19281000 | J26: 7596000 | K26: 15108000 | L26: 22167000 | M26: 29013000 | N26: 8629000 | O26: 17872000 | P26: 27020000 | Q26: 36216000 | R26: 11818000 | S26: 25478000 | W26: 除稅前利潤 | X26: 3613003 | Y26: 3818395 | Z26: 3997610 | AA26: 3622007 | AB26: 5100129 | AC26: =IF(AC21="","",IF(AC$2=AB$2,G26-F26,G26)) -> 4610412 | AD26: 4830995 | AE26: 4739464 | AF26: 7596000 | AG26: 7512000 | AH26: =IF(AH21="","",IF(AH$2=AG$2,L26-K26,L26)) -> 7059000 | AI26: =IF(AI21="","",IF(AI$2=AH$2,M26-L26,M26)) -> 6846000 | AJ26: =IF(AJ21="","",IF(AJ$2=AI$2,N26-M26,N26)) -> 8629000 | AK26: =IF(AK21="","",IF(AK$2=AJ$2,O26-N26,O26)) -> 9243000 | AL26: =IF(AL21="","",IF(AL$2=AK$2,P26-O26,P26)) -> 9148000 | AM26: =IF(AM21="","",IF(AM$2=AL$2,Q26-P26,Q26)) -> 9196000 | AN26: =IF(AN21="","",IF(AN$2=AM$2,R26-Q26,R26)) -> 11818000 | AO26: =IF(AO21="","",IF(AO$2=AN$2,S26-R26,S26)) -> 13660000 | AP26: =IF(AP21="","",IF(AP$2=AO$2,T26-S26,T26)) ->  | AR26: 除稅前利潤 | AS26: 8629000 | AT26: 9243000 | AU26: 9148000 | AV26: 9196000 | AW26: 11818000 | AX26: 13660000
A27: 所得稅費用 | B27: 650673 | C27: 1358497 | D27: 2114962 | E27: 2266163 | F27: 1029001 | G27: 1955158 | H27: 2909959 | I27: 3718000 | J27: 1164000 | K27: 2850000 | L27: 4233000 | M27: 5125000 | N27: 1699000 | O27: 3546000 | P27: 5110000 | Q27: 7108000 | R27: 2550000 | S27: 5330000 | W27: 所得稅費用 | X27: 650673 | Y27: 707824 | Z27: 756465 | AA27: 151201 | AB27: 1029001 | AC27: 926157 | AD27: 954801 | AE27: 808041 | AF27: 1164000 | AG27: 1686000 | AH27: 1383000 | AI27: 892000 | AJ27: 1699000 | AK27: 1847000 | AL27: 1564000 | AM27: 1998000 | AN27: 2550000 | AO27: 2780000 | AR27: 所得稅費用 | AS27: 1699000 | AT27: 1847000 | AU27: 1564000 | AV27: 1998000 | AW27: 2550000 | AX27: 2780000
A28: 稅後淨利 | B28: 2962330 | C28: 6072901 | D28: 9314046 | E28: 12784852 | F28: 4071128 | G28: 7755383 | H28: 11631577 | I28: 15563000 | J28: 6432000 | K28: 12258000 | L28: 17934000 | M28: 23888000 | N28: 6930000 | O28: 14326000 | P28: 21910000 | Q28: 29108000 | R28: 9268000 | S28: 20148000 | W28: 稅後淨利 | X28: 2962330 | Y28: 3110571 | Z28: 3241145 | AA28: 3470806 | AB28: 4071128 | AC28: 3684255 | AD28: 3876194 | AE28: 3931423 | AF28: 6432000 | AG28: 5826000 | AH28: 5676000 | AI28: 5954000 | AJ28: 6930000 | AK28: 7396000 | AL28: 7584000 | AM28: 7198000 | AN28: 9268000 | AO28: 10880000 | AR28: 稅後淨利 | AS28: 6930000 | AT28: 7396000 | AU28: 7584000 | AV28: 7198000 | AW28: 9268000 | AX28: 10880000
A29: 停業部門損益 | B29: 0 | C29: 0 | D29: 0 | E29: 0 | F29: 0 | G29: 0 | H29: 0 | I29: 0 | J29: 0 | K29: 0 | L29: 0 | M29: 0 | N29: 0 | O29: 0 | P29: 0 | Q29: 0 | R29: 0 | S29: 0 | W29: 停業部門損益 | X29: 0 | Y29: 0 | Z29: 0 | AA29: 0 | AB29: 0 | AC29: 0 | AD29: 0 | AE29: 0 | AF29: 0 | AG29: 0 | AH29: 0 | AI29: 0 | AJ29: 0 | AK29: 0 | AL29: 0 | AM29: 0 | AN29: 0 | AO29: 0 | AR29: 停業部門損益 | AS29: 0 | AT29: 0 | AU29: 0 | AV29: 0 | AW29: 0 | AX29: 0
A30: 非常項目 | B30: 0 | C30: 0 | D30: 0 | E30: 0 | F30: 0 | G30: 0 | H30: 0 | I30: 0 | J30: 0 | K30: 0 | L30: 0 | M30: 0 | N30: 0 | O30: 0 | P30: 0 | Q30: 0 | R30: 0 | S30: 0 | W30: 非常項目 | X30: 0 | Y30: 0 | Z30: 0 | AA30: 0 | AB30: 0 | AC30: 0 | AD30: =IF(AD25="","",IF(AD$2=AC$2,H30-G30,H30)) -> 0 | AE30: 0 | AF30: 0 | AG30: 0 | AH30: 0 | AI30: 0 | AJ30: 0 | AK30: 0 | AL30: 0 | AM30: 0 | AN30: 0 | AO30: 0 | AR30: 非常項目 | AS30: 0 | AT30: 0 | AU30: 0 | AV30: 0 | AW30: 0 | AX30: 0
A31: 累計影響數 | B31: 0 | C31: 0 | D31: 0 | E31: 0 | F31: 0 | G31: 0 | H31: 0 | I31: 0 | J31: 0 | K31: 0 | L31: 0 | M31: 0 | N31: 0 | O31: 0 | P31: 0 | Q31: 0 | R31: 0 | S31: 0 | W31: 累計影響數 | X31: =IF(X26="","",IF(X$2=N$2,B31-A31,B31)) -> 0 | Y31: =IF(Y26="","",IF(Y$2=X$2,C31-B31,C31)) -> 0 | Z31: =IF(Z26="","",IF(Z$2=Y$2,D31-C31,D31)) -> 0 | AA31: =IF(AA26="","",IF(AA$2=Z$2,E31-D31,E31)) -> 0 | AB31: =IF(AB26="","",IF(AB$2=AA$2,F31-E31,F31)) -> 0 | AC31: 0 | AD31: 0 | AE31: 0 | AF31: 0 | AG31: 0 | AH31: 0 | AI31: 0 | AJ31: 0 | AK31: 0 | AL31: 0 | AM31: 0 | AN31: 0 | AO31: 0 | AR31: 累計影響數 | AS31: 0 | AT31: 0 | AU31: 0 | AV31: 0 | AW31: 0 | AX31: 0
A32: 撥至儲備 | B32: 0 | C32: 0 | D32: 0 | E32: 0 | F32: 0 | G32: 0 | H32: 0 | I32: 0 | J32: 0 | K32: 0 | L32: 0 | M32: 0 | N32: 0 | O32: 0 | P32: 0 | Q32: 0 | R32: 0 | S32: 0 | W32: 撥至儲備 | X32: 0 | Y32: 0 | Z32: 0 | AA32: 0 | AB32: 0 | AC32: 0 | AD32: 0 | AE32: 0 | AF32: 0 | AG32: 0 | AH32: 0 | AI32: 0 | AJ32: 0 | AK32: 0 | AL32: 0 | AM32: 0 | AN32: 0 | AO32: 0 | AR32: 撥至儲備 | AS32: 0 | AT32: 0 | AU32: 0 | AV32: 0 | AW32: 0 | AX32: 0
A33: 其他調整項目 | B33: 0 | C33: 0 | D33: 0 | E33: 0 | F33: 0 | G33: 0 | H33: 0 | I33: 0 | J33: 0 | K33: 0 | L33: 0 | M33: 0 | N33: 0 | O33: 0 | P33: 0 | Q33: 0 | R33: 0 | S33: 0 | W33: 其他調整項目 | X33: 0 | Y33: 0 | Z33: 0 | AA33: 0 | AB33: 0 | AC33: 0 | AD33: 0 | AE33: 0 | AF33: 0 | AG33: 0 | AH33: 0 | AI33: 0 | AJ33: 0 | AK33: 0 | AL33: 0 | AM33: 0 | AN33: 0 | AO33: 0 | AR33: 其他調整項目 | AS33: =INDEX(PL_R,MATCH($AR33,$W:$W,0),MATCH(AS$1,$W$1:$AP$1,0),TRUE) -> 0 | AT33: 0 | AU33: 0 | AV33: 0 | AW33: 0 | AX33: 0
A34: 本年度稅後溢利 | B34: 2962330 | C34: 6072901 | D34: 9314046 | E34: 12784852 | F34: 4071128 | G34: 7755383 | H34: 11631577 | I34: 15563000 | J34: 6432000 | K34: 12258000 | L34: 17934000 | M34: 23888000 | N34: 6930000 | O34: 14326000 | P34: 21910000 | Q34: 29108000 | R34: 9268000 | S34: 20148000 | W34: 本年度稅後溢利 | X34: 2962330 | Y34: 3110571 | Z34: 3241145 | AA34: 3470806 | AB34: 4071128 | AC34: 3684255 | AD34: 3876194 | AE34: 3931423 | AF34: 6432000 | AG34: 5826000 | AH34: 5676000 | AI34: 5954000 | AJ34: 6930000 | AK34: 7396000 | AL34: 7584000 | AM34: 7198000 | AN34: 9268000 | AO34: 10880000 | AR34: 本年度稅後溢利 | AS34: 6930000 | AT34: 7396000 | AU34: 7584000 | AV34: 7198000 | AW34: 9268000 | AX34: 10880000
A35: 少數股東應佔溢利 | B35: 12820 | C35: 23316 | D35: 45768 | E35: 52981 | F35: 27309 | G35: 31175 | H35: 40707 | I35: 61000 | J35: -25000 | K35: -35000 | L35: -16000 | M35: 78000 | N35: 47000 | O35: 129000 | P35: 268000 | Q35: 302000 | R35: 85000 | S35: 228000 | W35: 少數股東應佔溢利 | X35: 12820 | Y35: 10496 | Z35: 22452 | AA35: 7213 | AB35: 27309 | AC35: 3866 | AD35: 9532 | AE35: 20293 | AF35: -25000 | AG35: -10000 | AH35: 19000 | AI35: 94000 | AJ35: 47000 | AK35: 82000 | AL35: 139000 | AM35: 34000 | AN35: 85000 | AO35: 143000 | AR35: 少數股東應佔溢利 | AS35: 47000 | AT35: 82000 | AU35: 139000 | AV35: 34000 | AW35: 85000 | AX35: 143000
A36: 本公司股東應佔溢利 | B36: 2949510 | C36: 6049585 | D36: 9268278 | E36: 12731871 | F36: 4043819 | G36: 7724208 | H36: 11590870 | I36: 15502000 | J36: 6457000 | K36: 12293000 | L36: 17950000 | M36: 23810000 | N36: 6883000 | O36: 14197000 | P36: 21642000 | Q36: 28806000 | R36: 9183000 | S36: 19920000 | W36: 本公司股東應佔溢利 | X36: 2949510 | Y36: 3100075 | Z36: 3218693 | AA36: 3463593 | AB36: 4043819 | AC36: 3680389 | AD36: 3866662 | AE36: 3911130 | AF36: 6457000 | AG36: 5836000 | AH36: 5657000 | AI36: 5860000 | AJ36: 6883000 | AK36: 7314000 | AL36: 7445000 | AM36: 7164000 | AN36: 9183000 | AO36: 10737000 | AR36: 本公司股東應佔溢利 | AS36: 6883000 | AT36: 7314000 | AU36: 7445000 | AV36: 7164000 | AW36: 9183000 | AX36: 10737000
A37: 基本每股盈餘 | B37: 161.8 | C37: 331.6 | D37: 507.5 | E37: 696.5 | F37: 220.4 | G37: 421.3 | H37: 631.8 | I37: 846.4 | J37: 350 | K37: 133.2 | L37: 194.8 | M37: 257.9 | N37: 74.1 | O37: 152.8 | P37: 232.8 | Q37: 309.7 | R37: 98.1 | S37: 212.8 | W37: 基本每股盈餘 | X37: =IF(X36="","",X36/X38*100) -> 161.7941176 | Y37: =IF(Y36="","",Y36/Y38*100) -> 169.9135819 | Z37: 176.260404 | AA37: 189.4862699 | AB37: 220.3815758 | AC37: 200.7476514 | AD37: 210.759542 | AE37: =IF(AE36="","",AE36/AE38*100) -> 213.4896288 | AF37: =IF(AF36="","",AF36/AF38*100) -> 349.9728997 | AG37: =IF(AG36="","",AG36/AG38*100) -> 63.22175279 | AH37: 61.38237847 | AI37: 63.48174629 | AJ37: 74.1143534 | AK37: 78.7382926 | AL37: 80.09682625 | AM37: 77.03225806 | AN37: 98.14042962 | AO37: 114.6747837 | AR37: 基本每股盈餘 | AS37: 74.1143534 | AT37: 78.7382926 | AU37: 80.09682625 | AV37: 77.03225806 | AW37: 98.14042962 | AX37: 114.6747837
A38: 加權平均股數 | B38: 1823002 | C38: 1824501 | D38: 1826101 | E38: 1827886 | F38: 1834917 | G38: 1833341 | H38: 1834632 | I38: 1832000 | J38: 1845000 | K38: 9231000 | L38: 9216000 | M38: 9231000 | N38: 9287000 | O38: 9289000 | P38: 9295000 | Q38: 9300000 | R38: 9357000 | S38: 9363000 | W38: 加權平均股數 | X38: =IF(B38="","",B38) -> 1823002 | Y38: 1824501 | Z38: 1826101 | AA38: 1827886 | AB38: 1834917 | AC38: 1833341 | AD38: 1834632 | AE38: =IF(I38="","",I38) -> 1832000 | AF38: 1845000 | AG38: 9231000 | AH38: 9216000 | AI38: 9231000 | AJ38: 9287000 | AK38: 9289000 | AL38: 9295000 | AM38: 9300000 | AN38: 9357000 | AO38: 9363000 | AR38: 加權平均股數 | AS38: 9287000 | AT38: 9289000 | AU38: 9295000 | AV38: 9300000 | AW38: 9357000 | AX38: 9363000
A39: 當季特別股股息負債 | B39: 0 | C39: 0 | D39: 0 | E39: 0 | F39: 0 | G39: 0 | H39: 0 | I39: 0 | J39: 0 | K39: 0 | L39: 0 | M39: 0 | N39: 0 | O39: 0 | P39: 0 | Q39: 0 | R39: 0 | S39: 0 | W39: 當季特別股股息負債 | X39: 0 | Y39: 0 | Z39: 0 | AA39: 0 | AB39: 0 | AC39: 0 | AD39: =IF(AD34="","",IF(AD$2=AC$2,H39-G39,H39)) -> 0 | AE39: =IF(AE34="","",IF(AE$2=AD$2,I39-H39,I39)) -> 0 | AF39: 0 | AG39: 0 | AH39: 0 | AI39: 0 | AJ39: 0 | AK39: 0 | AL39: 0 | AM39: 0 | AN39: 0 | AO39: 0 | AR39: 當季特別股股息負債 | AS39: 0 | AT39: 0 | AU39: 0 | AV39: 0 | AW39: 0 | AX39: 0
A40: 每股盈餘-攤薄 | B40: 158.7 | C40: 325.2 | D40: 497.7 | E40: 683.3 | F40: 216.6 | G40: 414.1 | H40: 620.8 | I40: 829.8 | J40: 344.9 | K40: 131.3 | L40: 191.8 | M40: 254.5 | N40: 73.3 | O40: 151.2 | P40: 229.8 | Q40: 305.5 | R40: 97 | S40: 210.2 | W40: 每股盈餘-攤薄 | AR40: 每股盈餘-攤薄 | AS40: 0 | AT40: 0 | AU40: 0 | AV40: 0 | AW40: 0 | AX40: 0
A41: 攤薄加權平均股數 | B41: 1858843 | C41: 1860422 | D41: 1862339 | E41: 1863290 | F41: 1867025 | G41: 1865417 | H41: 1867180 | I41: 1868000 | J41: 1872000 | K41: 9361000 | L41: 9361000 | M41: 9357000 | N41: 9385000 | O41: 9391000 | P41: 9420000 | Q41: 9430000 | R41: 9469000 | S41: 9475000 | W41: 攤薄加權平均股數 | AR41: 攤薄加權平均股數 | AS41: 0 | AT41: 0 | AU41: 0 | AV41: 0 | AW41: 0 | AX41: 0
A42: 稅前息前折舊前攤銷前淨利 | E42: 17997817 | I42: 23281000 | W42: 稅前息前折舊前攤銷前淨利 | X42: 0 | Y42: 0 | Z42: 0 | AA42: 17997817 | AB42: 0 | AC42: 0 | AD42: 0 | AE42: =IF(AE37="","",IF(AE$2=AD$2,I42-H42,I42)) -> 23281000 | AF42: 0 | AG42: 0 | AH42: 0 | AI42: 0 | AJ42: 0 | AK42: 0 | AL42: 0 | AM42: 0 | AN42: 0 | AO42: 0 | AR42: 稅前息前折舊前攤銷前淨利 | AS42: 0 | AT42: 0 | AU42: 0 | AV42: 0 | AW42: 0 | AX42: 0
A43: 營業毛利 (財報) | B43: 5811541 | C43: 12027406 | D43: 18805869 | E43: 25686351 | F43: 7593793 | G43: 15388029 | H43: 23886855 | I43: 32659000 | J43: 10600000 | K43: 22772000 | L43: 35413000 | M43: 48059000 | N43: 13434000 | O43: 27872000 | P43: 43452000 | Q43: 61232000 | R43: 18589000 | S43: 39045000 | W43: 營業毛利 (財報) | X43: 5811541 | Y43: 6215865 | Z43: 6778463 | AA43: 6880482 | AB43: 7593793 | AC43: 7794236 | AD43: 8498826 | AE43: 8772145 | AF43: 10600000 | AG43: 12172000 | AH43: 12641000 | AI43: 12646000 | AJ43: 13434000 | AK43: 14438000 | AL43: 15580000 | AM43: 17780000 | AN43: 18589000 | AO43: 20456000 | AR43: 營業毛利 (財報) | AS43: 13434000 | AT43: 14438000 | AU43: 15580000 | AV43: 17780000 | AW43: 18589000 | AX43: 20456000
A44: 營業溢利 (財報) | B44: 3691358 | C44: 7628973 | D44: 11753338 | E44: 15479413 | F44: 5062518 | G44: 9627622 | H44: 14443405 | I44: 19194000 | J44: 7790000 | K44: 15633000 | L44: 23148000 | M44: 30542000 | N44: 9372000 | O44: 19408000 | P44: 29739000 | Q44: 40627000 | R44: 13398000 | S44: 27727000 | W44: 營業溢利 (財報) | X44: 3691358 | Y44: 3937615 | Z44: 4124365 | AA44: 3726075 | AB44: 5062518 | AC44: 4565104 | AD44: 4815783 | AE44: 4750595 | AF44: 7790000 | AG44: 7843000 | AH44: 7515000 | AI44: 7394000 | AJ44: 9372000 | AK44: 10036000 | AL44: 10331000 | AM44: 10888000 | AN44: 13398000 | AO44: 14329000 | AR44: 營業溢利 (財報) | AS44: 9372000 | AT44: 10036000 | AU44: 10331000 | AV44: 10888000 | AW44: 13398000 | AX44: 14329000
A45: 已發行普通股股數 | B45: 1840206 | C45: 1844090 | D45: 1846221 | E45: 1853333 | F45: 1852794 | G45: 1852482 | H45: 1859135 | I45: 1862111 | J45: 1864299 | K45: 9342539 | L45: 9365978 | M45: 9370679 | N45: 9374685 | O45: 9377452 | P45: 9401489 | Q45: 9403924 | R45: 9406845 | S45: 9408830 | W45: 已發行普通股股數 | X45: =IF(B45="","",B45) -> 1840206 | Y45: 1844090 | Z45: 1846221 | AA45: 1853333 | AB45: 1852794 | AC45: 1852482 | AD45: 1859135 | AE45: =IF(I45="","",I45) -> 1862111 | AF45: 1864299 | AG45: 9342539 | AH45: 9365978 | AI45: 9370679 | AJ45: 9374685 | AK45: 9377452 | AL45: 9401489 | AM45: 9403924 | AN45: 9406845 | AO45: 9408830 | AR45: 已發行普通股股數 | AS45: 9374685 | AT45: 9377452 | AU45: 9401489 | AV45: 9403924 | AW45: 9406845 | AX45: 9408830
A46: 序號 | B46: =IF(B1="","",B1) -> -11 | C46: -10 | D46: -9 | E46: -8 | F46: -7 | G46: -6 | H46: -5 | I46: -4 | J46: -3 | K46: -2 | L46: -1 | M46: 0 | N46: 1 | O46: 2 | P46: =IF(P1="","",P1) -> 3 | Q46: 4 | R46: 5 | S46: 6
X47: =LEFT(X3,4)-1&RIGHT(X3,2) -> 2011Q1 | Y47: 2011Q2 | Z47: 2011Q3 | AA47: 2011Q4 | AB47: 2012Q1 | AC47: 2012Q2 | AD47: 2012Q3 | AE47: 2012Q4 | AF47: 2013Q1 | AG47: =LEFT(AG3,4)-1&RIGHT(AG3,2) -> 2013Q2 | AH47: =LEFT(AH3,4)-1&RIGHT(AH3,2) -> 2013Q3 | AI47: 2013Q4 | AJ47: 2014Q1 | AK47: 2014Q2 | AL47: 2014Q3 | AM47: 2014Q4 | AN47: 2015Q1 | AO47: 2015Q2
W48: 稅後淨利成長率 | X48: =IF(HLOOKUP(X$47,$W$3:$AP$45,32,0)<0,(-(X34/HLOOKUP(X$47,$W$3:$AP$45,32,0)-1))*100,(X34/HLOOKUP(X$47,$W$3:$AP$45,32,0)-1)*100) ->  | AB48: 37.42992847 | AC48: 18.4430447 | AD48: 19.59335358 | AE48: 13.27118254 | AF48: 57.99061096 | AG48: 58.13237683 | AH48: 46.43229931 | AI48: 51.44643555 | AJ48: 7.742537313 | AK48: 26.94816341 | AL48: 33.61522199 | AM48: 20.89351696 | AN48: 33.73737374 | AO48: 47.10654408 | AR48: 稅後淨利成長率 | AS48: =INDEX(PL_R,MATCH($AR48,$W:$W,0),MATCH(AS$1,$W$1:$AP$1,0),TRUE) -> 7.742537313 | AT48: 26.94816341 | AU48: 33.61522199 | AV48: 20.89351696 | AW48: 33.73737374 | AX48: 47.10654408
W49: 營收成長率 | X49: =IF(HLOOKUP(X$47,$W$3:$AP$45,7,0)<0,(-(X9/HLOOKUP(X$47,$W$3:$AP$45,7,0)-1))*100,(X9/HLOOKUP(X$47,$W$3:$AP$45,7,0)-1)*100) ->  | AB49: 40.42032957 | AC49: 36.64090051 | AD49: 34.32222368 | AE49: 39.63415613 | AF49: 35.81787532 | AG49: 37.27255847 | AH49: 27.50471319 | AI49: 23.61951189 | AJ49: 21.73369565 | AK49: 18.65187886 | AL49: 34.2588853 | AM49: 45.10916198 | AN49: 42.84119827 | AO49: 52.3368475 | AR49: 營收成長率 | AS49: 21.73369565 | AT49: 18.65187886 | AU49: 34.2588853 | AV49: 45.10916198 | AW49: 42.84119827 | AX49: 52.3368475
W50: 營業毛利率 | X50: =X12/X9*100 -> 60.23659345 | Y50: =Y12/Y9*100 -> 59.04551087 | Z50: 58.60905433 | AA50: 56.61525544 | AB50: 56.05287124 | AC50: 54.18488388 | AD50: 54.70720778 | AE50: 51.69264387 | AF50: 57.60869565 | AG50: 61.64286438 | AH50: =AH12/AH9*100 -> 63.81764943 | AI50: 60.2822004 | AJ50: 59.97589178 | AK50: 61.62448248 | AL50: 58.58464315 | AM50: 58.40806807 | AN50: 58.09970308 | AO50: 57.31416884 | AR50: 營業毛利率 | AS50: 59.97589178 | AT50: 61.62448248 | AU50: 58.58464315 | AV50: 58.40806807 | AW50: 58.09970308 | AX50: 57.31416884
W51: 營業利益率 | X51: =X19/X9*100 -> 38.26090724 | Y51: =Y19/Y9*100 -> 37.40404421 | Z51: 35.66075855 | AA51: 30.65957994 | AB51: 37.36850209 | AC51: 31.73622535 | AD51: 30.99934523 | AE51: 27.99438627 | AF51: 42.33695652 | AG51: 39.71943685 | AH51: =AH19/AH9*100 -> 37.93921648 | AI51: 35.24644866 | AJ51: 41.84115362 | AK51: 42.83580178 | AL51: 38.84710837 | AM51: 35.76755034 | AN51: 41.87529301 | AO51: 40.14737609 | AR51: 營業利益率 | AS51: 41.84115362 | AT51: 42.83580178 | AU51: 38.84710837 | AV51: 35.76755034 | AW51: 41.87529301 | AX51: 40.14737609
W52: 稅前淨利率 | X52: =X26/X9*100 -> 37.44875806 | Y52: =Y26/Y9*100 -> 36.27155407 | Z52: 34.56478876 | AA52: 29.80326836 | AB52: 37.64612416 | AC52: 32.05120282 | AD52: 31.09726534 | AE52: 27.92879332 | AF52: 41.2826087 | AG52: 38.04314798 | AH52: =AH26/AH9*100 -> 35.63711632 | AI52: 32.6341882 | AJ52: 38.52404125 | AK52: 39.4511076 | AL52: 34.39873656 | AM52: 30.20925725 | AN52: 36.93702141 | AO52: 38.27295397 | AR52: 稅前淨利率 | AS52: 38.52404125 | AT52: 39.4511076 | AU52: 34.39873656 | AV52: 30.20925725 | AW52: 36.93702141 | AX52: 38.27295397
W53: 稅後淨利率 | X53: =X34/X9*100 -> 30.70453566 | Y53: =Y34/Y9*100 -> 29.54781897 | Z53: 28.02411747 | AA53: 28.55912831 | AB53: 30.05064973 | AC53: 25.61263597 | AD53: 24.95118156 | AE53: 23.1671557 | AF53: 34.95652174 | AG53: 29.50470981 | AH53: =AH34/AH9*100 -> 28.65508885 | AI53: 28.3821146 | AJ53: 30.9388812 | AK53: 31.56771522 | AL53: 28.51771076 | AM53: 23.64574094 | AN53: 28.9670261 | AO53: 30.48387549 | AR53: 稅後淨利率 | AS53: 30.9388812 | AT53: 31.56771522 | AU53: 28.51771076 | AV53: 23.64574094 | AW53: 28.9670261 | AX53: 30.48387549

Sheet FIN
A1: 00700 騰訊控股 | B1: =IF(B2="","",IF(MONTH(B2)=12,YEAR(B2),YEAR(B2)&"Q"&MONTH(B2)/3)) -> 2012 | C1: 2013 | D1: 2014 | E1: 2015 | F1: 2016Q2
A2: Data Field | B2: 2012-12-31 | C2: 2013-12-31 | D2: 2014-12-31 | E2: 2015-12-31 | F2: 2016-06-30
A3: 合併(Y/N) | B3: Y | C3: Y | D3: Y | E3: Y | F3: Y
A4: 幣別 | B4: RMB | C4: RMB | D4: RMB | E4: RMB | F4: RMB
A5: 會計開始月份 | B5: 2012/01 | C5: 2013/01 | D5: 2014/01 | E5: 2015/01 | F5: 2016/01
A6: 會計結束月份 | B6: 2012/12 | C6: 2013/12 | D6: 2014/12 | E6: 2015/12 | F6: 2016/06
A7: 固定資產 | B7: 7936457 | C7: 10734000 | D7: 11748000 | E7: 14221000 | F7: 15535000
A8: 投資物業-非流動 | B8: 21674 | C8: 0 | D8: 268000 | E8: 292000 | F8: 710000
A9: 發展中物業-非流動 | B9: 0 | C9: 0 | D9: 0 | E9: 0 | F9: 0
A10: 生物資產-非流動 | B10: 0 | C10: 0 | D10: 0 | E10: 0 | F10: 0
A11: 預付租賃款－非流動 | B11: 794439 | C11: 871000 | D11: 751000 | E11: 2293000 | F11: 4066000
A12: 商譽 | B12: 2928919 | C12: 2552000 | D12: 0 | E12: 0 | F12: 0
A13: 聯營公司權益淨額 | B13: 7310266 | C13: 12170000 | D13: 54072000 | E13: 66401000 | F13: 64092000
A14: 共同控制公司權益 | B14: 35409 | C14: 9000 | D14: 63000 | E14: 544000 | F14: 573000
A15: 非流動資產合計 | B15: 38746663 | C15: 53549000 | D15: 95845000 | E15: 151440000 | F15: 183018000
A16: 存貨 | B16: 568084 | C16: 1384000 | D16: 244000 | E16: 222000 | F16: 216000
A17: 備供出售流動金融資產 | B17: 0 | C17: 0 | D17: 0 | E17: 0 | F17: 0
A18: 應收帳款及票據 | B18: 2353959 | C18: 2955000 | D18: 4588000 | E18: 7061000 | F18: 8810000
A19: 其他應收款 | B19: 2582334 | C19: 4196000 | D19: 5315000 | E19: 11397000 | F19: 0
A20: 短期借支 | B20: 0 | C20: 0 | D20: 0 | E20: 0 | F20: 0
A21: 預付費用及預付款 | B21: 622719 | C21: 1169000 | D21: 2489000 | E21: 0 | F21: 11908000
A22: 預付租賃款-流動 | B22: 0 | C22: 0 | D22: 0 | E22: 0 | F22: 0
A23: 現金及約當現金 | B23: 27189073 | C23: 39851000 | D23: 53511000 | E23: 80769000 | F23: 99980000
A24: 流動資產合計 | B24: 36509148 | C24: 53686000 | D24: 75321000 | E24: 155378000 | F24: 247941000
A25: 資產總額 | B25: 75255811 | C25: 107235000 | D25: 171166000 | E25: 306818000 | F25: 430959000
A26: 短期借款 | B26: 982825 | C26: 2284000 | D26: 0 | E26: 0 | F26: 0
A27: 應付帳款及票據 | B27: 4211733 | C27: 6680000 | D27: 8683000 | E27: 15700000 | F27: 28450000
A28: 其他應付款 | B28: 719906 | C28: 1676000 | D28: 1780000 | E28: 0 | F28: 138759000
A29: 預收款項 | B29: 2486804 | C29: 4045000 | D29: 8949000 | E29: 0 | F29: 0
A30: 應付所得稅 | B30: 959967 | C30: 1911000 | D30: 1027000 | E30: 2070000 | F30: 3555000
A31: 一年內到期長期負債 | B31: 94283 | C31: 305000 | D31: 5049000 | E31: 15315000 | F31: 10080000
A32: 流動負債合計 | B32: 20664996 | C32: 33267000 | D32: 50035000 | E32: 124406000 | F32: 209002000
A33: 長期負債 | B33: 9622409 | C33: 12464000 | D33: 30535000 | E33: 50014000 | F33: 67615000
A34: 非流動負債合計 | B34: 12442549 | C34: 15505000 | D34: 39007000 | E34: 60312000 | F34: 77836000
A35: 負債總額 | B35: 33107545 | C35: 48772000 | D35: 89042000 | E35: 184718000 | F35: 286838000
A36: 普通股股本 | B36: 199 | C36: 0 | D36: 0 | E36: 0 | F36: 0
A37: 少數股權 | B37: 850759 | C37: 518000 | D37: 2111000 | E37: 2065000 | F37: 2851000
A38: 待出售資產相關權益 | B38: 0 | C38: 0 | D38: 0 | E38: 0 | F38: 0
A39: 股東權益總額 | B39: 42148266 | C39: 58463000 | D39: 82124000 | E39: 122100000 | F39: 144121000
A40: 營業額 | B40: 43893711 | C40: 60437000 | D40: 78932000 | E40: 102863000 | F40: 67686000
A41: 銷售成本 | B41: 18207360 | C41: 27778000 | D41: 30873000 | E41: 41631000 | F41: 28641000
A42: 營業毛利 (TEJ) | B42: 25686351 | C42: 32659000 | D42: 48059000 | E42: 61232000 | F42: 39045000
A43: 營業費用─研究及開發開支 | B43: 0 | C43: 0 | D43: 0 | E43: 0 | F43: 0
A44: 營業溢利 (TEJ) | B44: 15479413 | C44: 19194000 | D44: 30542000 | E44: 40627000 | F44: 27727000
A45: 營業溢利後其他收入合計 | B45: 0 | C45: 0 | D45: 0 | E45: 0 | F45: 0
A46: 營業溢利後其他支出合計 | B46: 0 | C46: 0 | D46: 0 | E46: 0 | F46: 0
A47: 除稅前利潤 | B47: 15051015 | C47: 19281000 | D47: 29013000 | E47: 36216000 | F47: 25478000
A48: 所得稅費用 | B48: 2266163 | C48: 3718000 | D48: 5125000 | E48: 7108000 | F48: 5330000
A49: 少數股東應佔溢利 | B49: 52981 | C49: 61000 | D49: 78000 | E49: 302000 | F49: 228000
A50: 本公司股東應佔溢利 | B50: 12731871 | C50: 15502000 | D50: 23810000 | E50: 28806000 | F50: 19920000
A51: 基本每股盈餘 | B51: 696.5 | C51: 846.4 | D51: 257.9 | E51: 309.7 | F51: 212.8
A52: 經營業務現金流入淨額 | B52: 19429457 | C52: 24374000 | D52: 32711000 | E52: 45431000 | F52: 28849000
A53: 投資活動之現金流出淨額 | B53: -16270208 | C53: -19134000 | D53: -28388000 | E53: -63605000 | F53: -21692000
A54: 融資活動之現金流入淨額 | B54: -2385978 | C54: 1708000 | D54: 18350000 | E54: 18528000 | F54: 12704000
A55: 本期產生現金流量-TEJ | B55: 773271 | C55: 6948000 | D55: 22673000 | E55: 354000 | F55: 19861000
A56: 流動比率 | B56: 176.67 | C56: 161.38 | D56: 150.54 | E56: 124.9 | F56: 118.63
A57: 速動比率 | B57: 164.8 | C57: 153.04 | D57: 145.07 | E57: 123.75 | F57: 112.09
A58: 負債比率 | B58: 43.99 | C58: 45.48 | D58: 52.02 | E58: 60.2 | F58: 66.56
A59: 每股淨值(A) | B59: 22.28 | C59: 31.12 | D59: 8.54 | E59: 12.76 | F59: 15.01
A60: 平均售貨天數 | B60: 5.69 | C60: 12.83 | D60: 9.62 | E60: 2.04 | F60: 1.39
A61: 應收帳款收現天數 | B61: 18.19 | C61: 16.03 | D61: 17.44 | E61: 20.67 | F61: 21.34
